Body,Body name,Date,Transaction number,Amount,Non recoverable VAT included in amount,Supplier name,Supplier ID,Expense area,Fund type,Expense type,Category description
http://statistics.data.gov.uk/search?search=E07000114,Thanet District Council,03/11/2017,441668,489.38,,Adecco Uk Ltd,ADE005,Chief Executive,Revenue,Agency Staff,Human Resources
http://statistics.data.gov.uk/search?search=E07000114,Thanet District Council,03/11/2017,442071,653.37,,Adecco Uk Ltd,ADE005,Chief Executive,Revenue,Agency Staff,Human Resources
http://statistics.data.gov.uk/search?search=E07000114,Thanet District Council,03/11/2017,441591,1500.00,,Barry Denyer-Green,DEN001,Community Services,Revenue,Services,Legal Services
http://statistics.data.gov.uk/search?search=E07000114,Thanet District Council,03/11/2017,441913,6225.00,,Faun Zoeller (Uk) Ltd,FAU001,Operational Services,Revenue,"Equip, Furniture And Materials",Vehicle Management
http://statistics.data.gov.uk/search?search=E07000114,Thanet District Council,03/11/2017,442771,113970.15,,Faun Zoeller (Uk) Ltd,FAU001,Corporate Resources and S151,Balance Sheet,Plant And Equipment,Vehicle Management
http://statistics.data.gov.uk/search?search=E07000114,Thanet District Council,03/11/2017,442061,5593.22,,Kent County Council (Kcs),KCC003,Operational Services,Revenue,Energy Costs,Facilities And Management Serv
http://statistics.data.gov.uk/search?search=E07000114,Thanet District Council,03/11/2017,442062,5716.59,,Kent County Council (Kcs),KCC003,Corporate Governance,Revenue,Energy Costs,Facilities And Management Serv
http://statistics.data.gov.uk/search?search=E07000114,Thanet District Council,03/11/2017,442069,10352.89,,Kent County Council (Kcs),KCC003,Corporate Governance,Revenue,Energy Costs,Facilities And Management Serv
http://statistics.data.gov.uk/search?search=E07000114,Thanet District Council,03/11/2017,441995,2418.00,,Main Man Supplies Ltd,MAI001,Operational Services,Revenue,"Clothes, Uniforms & Laundry",Clothing
http://statistics.data.gov.uk/search?search=E07000114,Thanet District Council,03/11/2017,441232,812.17,,Safetyshop,SAF010,Operational Services,Revenue,"Equip, Furniture And Materials",Health And Safety
http://statistics.data.gov.uk/search?search=E07000114,Thanet District Council,03/11/2017,442719,1534.08,,Scottish Water Business Stream Ltd,SCO019,Operational Services,Revenue,Water Services,Utilities
http://statistics.data.gov.uk/search?search=E07000114,Thanet District Council,03/11/2017,442720,459.66,,Scottish Water Business Stream Ltd,SCO019,Corporate Governance,Revenue,Water Services,Utilities
http://statistics.data.gov.uk/search?search=E07000114,Thanet District Council,03/11/2017,442721,1636.07,,Scottish Water Business Stream Ltd,SCO019,Corporate Governance,Revenue,Water Services,Utilities
http://statistics.data.gov.uk/search?search=E07000114,Thanet District Council,03/11/2017,442723,1283.83,,Scottish Water Business Stream Ltd,SCO019,Operational Services,Revenue,Water Services,Utilities
http://statistics.data.gov.uk/search?search=E07000114,Thanet District Council,03/11/2017,442724,1898.10,,Scottish Water Business Stream Ltd,SCO019,Operational Services,Revenue,Water Services,Utilities
http://statistics.data.gov.uk/search?search=E07000114,Thanet District Council,03/11/2017,442657,317.27,,Southern Electric,SEL007,Operational Services,Revenue,Energy Costs,Utilities
http://statistics.data.gov.uk/search?search=E07000114,Thanet District Council,03/11/2017,442730,2313.79,,Southern Electric,SEL007,Community Services,Revenue,Energy Costs,Utilities
http://statistics.data.gov.uk/search?search=E07000114,Thanet District Council,03/11/2017,441625,505.00,,Wilkin Chapman Llp,WIL057,Corporate Governance,Revenue,Services,Legal Services
http://statistics.data.gov.uk/search?search=E07000114,Thanet District Council,07/11/2017,442500,400.00,,A2b Technology (Uk) Ltd,A2B001,Corporate Governance,Revenue,"Equip, Furniture And Materials",ICT
http://statistics.data.gov.uk/search?search=E07000114,Thanet District Council,07/11/2017,442791,307.50,,Andy Morris,MOR028,Community Services,Revenue,Services,Arts And Leisure Services
http://statistics.data.gov.uk/search?search=E07000114,Thanet District Council,07/11/2017,442436,968.00,,Aston Walker,AST008,Community Services,Revenue,Services,Cemetery And Crematorium
http://statistics.data.gov.uk/search?search=E07000114,Thanet District Council,07/11/2017,442328,420.00,,Astra Uk (Contracts) Ltd,AST003,Operational Services,Revenue,Cleaning & Domestic Supplies,Environmental Services
http://statistics.data.gov.uk/search?search=E07000114,Thanet District Council,07/11/2017,442314,314.90,,Ate (Uk) Limited,ANG014,Operational Services,Revenue,Direct Transport Costs,Vehicle Management
http://statistics.data.gov.uk/search?search=E07000114,Thanet District Council,07/11/2017,442495,35329.24,,Axis Europe Plc,AXI001,Corporate Resources and S151,Balance Sheet,Council Dwellings,Construction-Repair And Maint
http://statistics.data.gov.uk/search?search=E07000114,Thanet District Council,07/11/2017,442974,1174.80,,Bramling Construction Ltd,BRA020,Corporate Resources and S151,Balance Sheet,Capital Exp-Non Council Assets,Grants
http://statistics.data.gov.uk/search?search=E07000114,Thanet District Council,07/11/2017,441725,400.00,,British Polythene Ltd,BPI002,Operational Services,Revenue,"Equip, Furniture And Materials",Environmental Services
http://statistics.data.gov.uk/search?search=E07000114,Thanet District Council,07/11/2017,442449,1032.50,,Buckingham Futures Limited,BUC010,Community Services,Revenue,Agency Staff,Human Resources
http://statistics.data.gov.uk/search?search=E07000114,Thanet District Council,07/11/2017,442830,1470.00,,Buckingham Futures Limited,BUC010,Community Services,Revenue,Agency Staff,Human Resources
http://statistics.data.gov.uk/search?search=E07000114,Thanet District Council,07/11/2017,442779,253.98,,Canon (Uk) Ltd,CAN021,Corporate Governance,Revenue,"Equip, Furniture And Materials",Facilities And Management Serv
http://statistics.data.gov.uk/search?search=E07000114,Thanet District Council,07/11/2017,442447,4410.00,,Ceas Kent Ltd,CEA001,Corporate Resources and S151,Balance Sheet,Plant And Equipment,Facilities And Management Serv
http://statistics.data.gov.uk/search?search=E07000114,Thanet District Council,07/11/2017,442456,1696.00,,Cobalt Consulting (Uk) Limited,COB004,Corporate Governance,Revenue,Agency Staff,Human Resources
http://statistics.data.gov.uk/search?search=E07000114,Thanet District Council,07/11/2017,442829,1696.00,,Cobalt Consulting (Uk) Limited,COB004,Corporate Governance,Revenue,Agency Staff,Human Resources
http://statistics.data.gov.uk/search?search=E07000114,Thanet District Council,07/11/2017,441953,216.58,,Dennis Eagle Ltd,DEN005,Operational Services,Revenue,Direct Transport Costs,Vehicle Management
http://statistics.data.gov.uk/search?search=E07000114,Thanet District Council,07/11/2017,441968,503.13,,Dennis Eagle Ltd,DEN005,Operational Services,Revenue,Direct Transport Costs,Vehicle Management
http://statistics.data.gov.uk/search?search=E07000114,Thanet District Council,07/11/2017,441969,442.75,,Dennis Eagle Ltd,DEN005,Operational Services,Revenue,Direct Transport Costs,Vehicle Management
http://statistics.data.gov.uk/search?search=E07000114,Thanet District Council,07/11/2017,442056,269.52,,Dennis Eagle Ltd,DEN005,Operational Services,Revenue,Direct Transport Costs,Vehicle Management
http://statistics.data.gov.uk/search?search=E07000114,Thanet District Council,07/11/2017,442090,211.00,,Dennis Eagle Ltd,DEN005,Operational Services,Revenue,Direct Transport Costs,Vehicle Management
http://statistics.data.gov.uk/search?search=E07000114,Thanet District Council,07/11/2017,442092,270.58,,Dennis Eagle Ltd,DEN005,Operational Services,Revenue,Direct Transport Costs,Vehicle Management
http://statistics.data.gov.uk/search?search=E07000114,Thanet District Council,07/11/2017,442094,270.58,,Dennis Eagle Ltd,DEN005,Operational Services,Revenue,Direct Transport Costs,Vehicle Management
http://statistics.data.gov.uk/search?search=E07000114,Thanet District Council,07/11/2017,442096,251.66,,Dennis Eagle Ltd,DEN005,Operational Services,Revenue,Direct Transport Costs,Vehicle Management
http://statistics.data.gov.uk/search?search=E07000114,Thanet District Council,07/11/2017,442300,447.82,,Dennis Eagle Ltd,DEN005,Operational Services,Revenue,Direct Transport Costs,Vehicle Management
http://statistics.data.gov.uk/search?search=E07000114,Thanet District Council,07/11/2017,442302,447.82,,Dennis Eagle Ltd,DEN005,Operational Services,Revenue,Direct Transport Costs,Vehicle Management
http://statistics.data.gov.uk/search?search=E07000114,Thanet District Council,07/11/2017,442304,214.99,,Dennis Eagle Ltd,DEN005,Operational Services,Revenue,Direct Transport Costs,Vehicle Management
http://statistics.data.gov.uk/search?search=E07000114,Thanet District Council,07/11/2017,442977,400.00,,Dolphin Lifts Kent,DOL003,Corporate Resources and S151,Balance Sheet,Capital Exp-Non Council Assets,Grants
http://statistics.data.gov.uk/search?search=E07000114,Thanet District Council,07/11/2017,442040,1600.00,,Dr R K Chhabra,CHH001,Operational Services,Revenue,Services,Cemetery And Crematorium
http://statistics.data.gov.uk/search?search=E07000114,Thanet District Council,07/11/2017,442782,3958.50,,E Saunders Margate Ltd,SAU001,Operational Services,Revenue,"Equip, Furniture And Materials",Construction-Repair And Maint
http://statistics.data.gov.uk/search?search=E07000114,Thanet District Council,07/11/2017,442666,329.17,,East Kent College,EAS018,Corporate Resources and S151,Revenue,Miscellaneous Expenses,Education
http://statistics.data.gov.uk/search?search=E07000114,Thanet District Council,07/11/2017,442849,3531.38,,Electoral Reform Services,ELE010,Corporate Governance,Revenue,Services,Facilities And Management Serv
http://statistics.data.gov.uk/search?search=E07000114,Thanet District Council,07/11/2017,442653,753.00,,Electrical Lighting Solutions Ltd,ELE013,Operational Services,Revenue,"Repairs,  Alter & Mtce - Build",Building Construction Material
http://statistics.data.gov.uk/search?search=E07000114,Thanet District Council,07/11/2017,442813,517.50,,Electrical Lighting Solutions Ltd,ELE013,Operational Services,Revenue,"Repairs,  Alter & Mtce - Build",Building Construction Material
http://statistics.data.gov.uk/search?search=E07000114,Thanet District Council,07/11/2017,442975,3338.53,,Evermech Services Ltd,EVE011,Corporate Resources and S151,Balance Sheet,Capital Exp-Non Council Assets,Grants
http://statistics.data.gov.uk/search?search=E07000114,Thanet District Council,07/11/2017,442971,319.48,,Family Mosaic Housing,FAM001,Corporate Resources and S151,Balance Sheet,Capital Exp-Non Council Assets,Housing Management
http://statistics.data.gov.uk/search?search=E07000114,Thanet District Council,07/11/2017,442702,626.27,,Farrer Barnes Limited,FAR012,Corporate Resources and S151,Revenue,Agency Staff,Human Resources
http://statistics.data.gov.uk/search?search=E07000114,Thanet District Council,07/11/2017,442704,694.49,,Farrer Barnes Limited,FAR012,Corporate Resources and S151,Revenue,Agency Staff,Human Resources
http://statistics.data.gov.uk/search?search=E07000114,Thanet District Council,07/11/2017,442970,25834.85,,H M Revenues & Customs,HMR005,Corporate Resources and S151,Balance Sheet,Hmrc-Gas Oil Duty,Government Agencies
http://statistics.data.gov.uk/search?search=E07000114,Thanet District Council,07/11/2017,442306,2331.02,,Haynes Of Maidstone Ltd,HAY008,Operational Services,Revenue,Direct Transport Costs,Vehicle Management
http://statistics.data.gov.uk/search?search=E07000114,Thanet District Council,07/11/2017,442445,2146.52,,Hodge Jones & Allen Llp,HOD006,Community Services,Revenue,Grants & Subscriptions,Legal Services
http://statistics.data.gov.uk/search?search=E07000114,Thanet District Council,07/11/2017,442145,1001.55,,Hr Go (Kent) Ltd,HRG001,Operational Services,Revenue,Agency Staff,Human Resources
http://statistics.data.gov.uk/search?search=E07000114,Thanet District Council,07/11/2017,442308,390.99,,Hr Go (Kent) Ltd,HRG001,Operational Services,Revenue,Agency Staff,Human Resources
http://statistics.data.gov.uk/search?search=E07000114,Thanet District Council,07/11/2017,442309,8854.75,,Hr Go (Kent) Ltd,HRG001,Operational Services,Revenue,Agency Staff,Human Resources
http://statistics.data.gov.uk/search?search=E07000114,Thanet District Council,07/11/2017,442498,486.55,,Hr Go (Kent) Ltd,HRG001,Operational Services,Revenue,Agency Staff,Human Resources
http://statistics.data.gov.uk/search?search=E07000114,Thanet District Council,07/11/2017,441598,300.00,,Inovem Limited,INO001,Community Services,Revenue,Communications & Computing,ICT
http://statistics.data.gov.uk/search?search=E07000114,Thanet District Council,07/11/2017,442483,850.00,,Jason Dodd Photography,JAS002,Corporate Resources and S151,Revenue,Services,Facilities And Management Serv
http://statistics.data.gov.uk/search?search=E07000114,Thanet District Council,07/11/2017,442972,925.50,,John Gale,GAL001,Corporate Resources and S151,Balance Sheet,Capital Exp-Non Council Assets,Grants
http://statistics.data.gov.uk/search?search=E07000114,Thanet District Council,07/11/2017,442484,4494.00,,Kent County Council,KCC002,Community Services,Revenue,Services,Various Cats-Public Sector
http://statistics.data.gov.uk/search?search=E07000114,Thanet District Council,07/11/2017,438957,217.44,,Kent County Council (Kcs),KCC003,Corporate Governance,Revenue,"Repairs,  Alter & Mtce - Build",Facilities And Management Serv
http://statistics.data.gov.uk/search?search=E07000114,Thanet District Council,07/11/2017,442690,823.28,,L W Burt & Son Ltd,BUR027,Corporate Governance,Revenue,"Repairs,  Alter & Mtce - Build",Construction-Repair And Maint
http://statistics.data.gov.uk/search?search=E07000114,Thanet District Council,07/11/2017,442337,8112.00,,Learning Pool Limited,LEA028,Corporate Resources and S151,Revenue,Training,ICT
http://statistics.data.gov.uk/search?search=E07000114,Thanet District Council,07/11/2017,442485,3951.00,,Learning Pool Limited,LEA028,East Kent Shared Services,Revenue,Training,ICT
http://statistics.data.gov.uk/search?search=E07000114,Thanet District Council,07/11/2017,441713,440.15,,Ling Metals Limited,LIN004,Operational Services,Revenue,Services,Environmental Services
http://statistics.data.gov.uk/search?search=E07000114,Thanet District Council,07/11/2017,441714,675.10,,Ling Metals Limited,LIN004,Operational Services,Revenue,Services,Environmental Services
http://statistics.data.gov.uk/search?search=E07000114,Thanet District Council,07/11/2017,442072,1100.00,,Lloyd Bore Ltd,LLO003,Operational Services,Revenue,Services,Consultancy
http://statistics.data.gov.uk/search?search=E07000114,Thanet District Council,07/11/2017,441940,256.09,,Mears Ltd,MEA003,Operational Services,Revenue,"Repairs,  Alter & Mtce - Build",Construction-Repair And Maint
http://statistics.data.gov.uk/search?search=E07000114,Thanet District Council,07/11/2017,441942,319.67,,Mears Ltd,MEA003,Operational Services,Revenue,"Repairs,  Alter & Mtce - Build",Construction-Repair And Maint
http://statistics.data.gov.uk/search?search=E07000114,Thanet District Council,07/11/2017,442663,22119.66,,Mears Ltd,MEA003,Corporate Resources and S151,Balance Sheet,Repairs And Mtce Holding A/C,Construction-Repair And Maint
http://statistics.data.gov.uk/search?search=E07000114,Thanet District Council,07/11/2017,442664,5021.78,,Mears Ltd,MEA003,Corporate Resources and S151,Balance Sheet,Repairs And Mtce Holding A/C,Construction-Repair And Maint
http://statistics.data.gov.uk/search?search=E07000114,Thanet District Council,07/11/2017,442665,44650.59,,Mears Ltd,MEA003,Corporate Resources and S151,Balance Sheet,Repairs And Mtce Holding A/C,Construction-Repair And Maint
http://statistics.data.gov.uk/search?search=E07000114,Thanet District Council,07/11/2017,442668,1243.65,,Mears Ltd,MEA003,Corporate Resources and S151,Balance Sheet,Repairs And Mtce Holding A/C,Construction-Repair And Maint
http://statistics.data.gov.uk/search?search=E07000114,Thanet District Council,07/11/2017,442669,751.03,,Mears Ltd,MEA003,Corporate Resources and S151,Balance Sheet,Repairs And Mtce Holding A/C,Construction-Repair And Maint
http://statistics.data.gov.uk/search?search=E07000114,Thanet District Council,07/11/2017,442670,17958.17,,Mears Ltd,MEA003,Corporate Resources and S151,Balance Sheet,Repairs And Mtce Holding A/C,Construction-Repair And Maint
http://statistics.data.gov.uk/search?search=E07000114,Thanet District Council,07/11/2017,442798,446.59,,Mears Ltd,MEA003,Corporate Governance,Revenue,"Repairs,  Alter & Mtce - Build",Construction-Repair And Maint
http://statistics.data.gov.uk/search?search=E07000114,Thanet District Council,07/11/2017,442074,2700.00,,Mews Environmental Limited,MEW001,Operational Services,Revenue,Training,Human Resources
http://statistics.data.gov.uk/search?search=E07000114,Thanet District Council,07/11/2017,441922,209.44,,Morgan Jones Ltd,MOR001,Corporate Governance,Revenue,Agency Staff,Human Resources
http://statistics.data.gov.uk/search?search=E07000114,Thanet District Council,07/11/2017,442333,524.29,,Morgan Jones Ltd,MOR001,East Kent Shared Services,Revenue,Agency Staff,Human Resources
http://statistics.data.gov.uk/search?search=E07000114,Thanet District Council,07/11/2017,442334,209.44,,Morgan Jones Ltd,MOR001,Corporate Governance,Revenue,Agency Staff,Human Resources
http://statistics.data.gov.uk/search?search=E07000114,Thanet District Council,07/11/2017,442335,315.51,,Morgan Jones Ltd,MOR001,East Kent Shared Services,Revenue,Agency Staff,Human Resources
http://statistics.data.gov.uk/search?search=E07000114,Thanet District Council,07/11/2017,442805,315.28,,Morgan Jones Ltd,MOR001,East Kent Shared Services,Revenue,Agency Staff,Human Resources
http://statistics.data.gov.uk/search?search=E07000114,Thanet District Council,07/11/2017,442807,524.66,,Morgan Jones Ltd,MOR001,East Kent Shared Services,Revenue,Agency Staff,Human Resources
http://statistics.data.gov.uk/search?search=E07000114,Thanet District Council,07/11/2017,442455,69.17,,Mr Darren Osborne,OSB008,Community Services,Revenue,Cleaning & Domestic Supplies,Cleaning And Janitorial
http://statistics.data.gov.uk/search?search=E07000114,Thanet District Council,07/11/2017,442455,398.33,,Mr Darren Osborne,OSB008,Corporate Governance,Revenue,Cleaning & Domestic Supplies,Cleaning And Janitorial
http://statistics.data.gov.uk/search?search=E07000114,Thanet District Council,07/11/2017,442455,40.00,,Mr Darren Osborne,OSB008,Operational Services,Revenue,Cleaning & Domestic Supplies,Cleaning And Janitorial
http://statistics.data.gov.uk/search?search=E07000114,Thanet District Council,07/11/2017,442685,680.00,,Mr James Mccracken,MCC016,Operational Services,Revenue,Services,Legal Services
http://statistics.data.gov.uk/search?search=E07000114,Thanet District Council,07/11/2017,442789,1904.10,,National Express Ltd,NAT010,Community Services,Revenue,Services,Agency Payments
http://statistics.data.gov.uk/search?search=E07000114,Thanet District Council,07/11/2017,441905,509.81,,Neopost Finance Limited,NEO005,Corporate Governance,Revenue,"Equip, Furniture And Materials",Mail Services
http://statistics.data.gov.uk/search?search=E07000114,Thanet District Council,07/11/2017,441911,20000.00,,Neopost Limited Neofunds,NEO004,Corporate Governance,Revenue,Communications & Computing,Mail Services
http://statistics.data.gov.uk/search?search=E07000114,Thanet District Council,07/11/2017,442578,483.40,,Neopost Ltd,NEO003,Corporate Governance,Revenue,"Equip, Furniture And Materials",Mail Services
http://statistics.data.gov.uk/search?search=E07000114,Thanet District Council,07/11/2017,442453,241.68,,Ocs Group Uk Ltd T/A Cannon,OCS003,Corporate Governance,Revenue,"Equip, Furniture And Materials",Cleaning And Janitorial
http://statistics.data.gov.uk/search?search=E07000114,Thanet District Council,07/11/2017,442678,272.00,,Orbital Net Ltd,ORB008,Corporate Resources and S151,Revenue,Communications & Computing,ICT
http://statistics.data.gov.uk/search?search=E07000114,Thanet District Council,07/11/2017,442085,2211.00,,Pass Driving School Ltd,PAS003,Corporate Resources and S151,Revenue,Training,Human Resources
http://statistics.data.gov.uk/search?search=E07000114,Thanet District Council,07/11/2017,442831,1895.00,,Powell Williams Llp,POW022,Corporate Resources and S151,Balance Sheet,Other Land And Buildings-Hra,Construction-Repair And Maint
http://statistics.data.gov.uk/search?search=E07000114,Thanet District Council,07/11/2017,442969,1100.00,,REDACTED PERSONAL DATA,N/A,Community Services,Revenue,Grants & Subscriptions,Rent Allowances
http://statistics.data.gov.uk/search?search=E07000114,Thanet District Council,07/11/2017,442760,271.73,,Scottish Water Business Stream Ltd,SCO019,Operational Services,Revenue,Water Services,Utilities
http://statistics.data.gov.uk/search?search=E07000114,Thanet District Council,07/11/2017,442763,2808.10,,Scottish Water Business Stream Ltd,SCO019,Operational Services,Revenue,Water Services,Utilities
http://statistics.data.gov.uk/search?search=E07000114,Thanet District Council,07/11/2017,442765,1010.40,,Scottish Water Business Stream Ltd,SCO019,Operational Services,Revenue,Water Services,Utilities
http://statistics.data.gov.uk/search?search=E07000114,Thanet District Council,07/11/2017,442767,1291.18,,Scottish Water Business Stream Ltd,SCO019,Operational Services,Revenue,Water Services,Utilities
http://statistics.data.gov.uk/search?search=E07000114,Thanet District Council,07/11/2017,442289,2556.00,,Sellick Partnership Ltd,SEL011,Corporate Governance,Revenue,Services,Human Resources
http://statistics.data.gov.uk/search?search=E07000114,Thanet District Council,07/11/2017,442681,1422.00,,Sharpe Pritchard Llp,SHA030,Corporate Resources and S151,Balance Sheet,Other Land And Buildings-Hra,Legal Services
http://statistics.data.gov.uk/search?search=E07000114,Thanet District Council,07/11/2017,441218,16083.32,,Southern Electric,SEL007,Community Services,Revenue,Energy Costs,Utilities
http://statistics.data.gov.uk/search?search=E07000114,Thanet District Council,07/11/2017,442440,-16083.32,,Southern Electric,SEL007,Community Services,Revenue,Energy Costs,Utilities
http://statistics.data.gov.uk/search?search=E07000114,Thanet District Council,07/11/2017,442442,2008.44,,Southern Electric,SEL007,Community Services,Revenue,Energy Costs,Utilities
http://statistics.data.gov.uk/search?search=E07000114,Thanet District Council,07/11/2017,442781,689.00,,Stagecoach Services Limited,STA023,Corporate Resources and S151,Balance Sheet,Staff Bus Permits Holding A/C,Public Transport
http://statistics.data.gov.uk/search?search=E07000114,Thanet District Council,07/11/2017,442032,642.50,,Suregreen Limited,SUR017,Operational Services,Revenue,"Repairs,  Alter & Mtce - Build",Construction-Repair And Maint
http://statistics.data.gov.uk/search?search=E07000114,Thanet District Council,07/11/2017,442511,480.00,,Survey And Test,SUR015,Corporate Governance,Revenue,"Repairs,  Alter & Mtce - Build",Utilities
http://statistics.data.gov.uk/search?search=E07000114,Thanet District Council,07/11/2017,442928,13080.10,,T Nielsen & Company Ltd,NIE001,Corporate Governance,Revenue,"Repairs,  Alter & Mtce - Build",Construction-Repair And Maint
http://statistics.data.gov.uk/search?search=E07000114,Thanet District Council,07/11/2017,442294,3854.16,,The Glenwood Hotel,GLE007,Community Services,Revenue,Services,Housing Management
http://statistics.data.gov.uk/search?search=E07000114,Thanet District Council,07/11/2017,442295,3091.68,,The Glenwood Hotel,GLE007,Community Services,Revenue,Services,Housing Management
http://statistics.data.gov.uk/search?search=E07000114,Thanet District Council,07/11/2017,442296,3675.01,,The Glenwood Hotel,GLE007,Community Services,Revenue,Services,Housing Management
http://statistics.data.gov.uk/search?search=E07000114,Thanet District Council,07/11/2017,442297,2587.51,,The Glenwood Hotel,GLE007,Community Services,Revenue,Services,Housing Management
http://statistics.data.gov.uk/search?search=E07000114,Thanet District Council,07/11/2017,442979,6286.77,,Tom Guy,GUY001,Corporate Resources and S151,Balance Sheet,Capital Exp-Non Council Assets,Grants
http://statistics.data.gov.uk/search?search=E07000114,Thanet District Council,07/11/2017,442980,1848.24,,Tom Guy,GUY001,Corporate Resources and S151,Balance Sheet,Capital Exp-Non Council Assets,Grants
http://statistics.data.gov.uk/search?search=E07000114,Thanet District Council,07/11/2017,442978,10165.00,,Trueden Disability Adaptations Ltd,TRU012,Corporate Resources and S151,Balance Sheet,Capital Exp-Non Council Assets,Grants
http://statistics.data.gov.uk/search?search=E07000114,Thanet District Council,07/11/2017,442964,3736.00,,Veale Wasbrough Vizards Llp,VEA001,Operational Services,Revenue,Services,Legal Services
http://statistics.data.gov.uk/search?search=E07000114,Thanet District Council,07/11/2017,442452,746.00,,Venn Group Limited,VEN004,Corporate Governance,Revenue,Services,Human Resources
http://statistics.data.gov.uk/search?search=E07000114,Thanet District Council,07/11/2017,441702,15800.00,,Weir & Carmichael Limited,WEI004,Operational Services,Revenue,"Equip, Furniture And Materials",Environmental Services
http://statistics.data.gov.uk/search?search=E07000114,Thanet District Council,08/11/2017,442187,2201.50,,Arc4 Limited,ARC015,Community Services,Revenue,Services,Consultancy
http://statistics.data.gov.uk/search?search=E07000114,Thanet District Council,08/11/2017,442462,222.00,,Guideline Lift Services Ltd,GUI002,Corporate Resources and S151,Balance Sheet,Repairs And Mtce Holding A/C,Construction-Repair And Maint
http://statistics.data.gov.uk/search?search=E07000114,Thanet District Council,08/11/2017,441376,23622.56,,P & R Installation Company Limited,PRI035,Corporate Resources and S151,Balance Sheet,Repairs And Mtce Holding A/C,Building Construction Material
http://statistics.data.gov.uk/search?search=E07000114,Thanet District Council,08/11/2017,442029,94754.50,,Porchlight,POR020,Community Services,Revenue,Grants & Subscriptions,Various Categories
http://statistics.data.gov.uk/search?search=E07000114,Thanet District Council,08/11/2017,442938,1711.47,,Scottish Water Business Stream Ltd,SCO019,Corporate Governance,Revenue,Water Services,Utilities
http://statistics.data.gov.uk/search?search=E07000114,Thanet District Council,14/11/2017,442776,4400.00,,Accordio Limited,ACC010,East Kent Shared Services,Revenue,Services,Consultancy
http://statistics.data.gov.uk/search?search=E07000114,Thanet District Council,14/11/2017,442659,225.00,,Adams Homecentre Ltd,ADA006,Operational Services,Revenue,"Equip, Furniture And Materials",Building Construction Material
http://statistics.data.gov.uk/search?search=E07000114,Thanet District Council,14/11/2017,443271,10082.06,,Adelante Software Limited,ADE002,Corporate Resources and S151,Revenue,Communications & Computing,ICT
http://statistics.data.gov.uk/search?search=E07000114,Thanet District Council,14/11/2017,442933,212.30,,Arco Limited,ARC001,Operational Services,Revenue,"Clothes, Uniforms & Laundry",Clothing
http://statistics.data.gov.uk/search?search=E07000114,Thanet District Council,14/11/2017,443407,2210.00,,Ascendit Lifts Ltd,ASC001,Corporate Resources and S151,Balance Sheet,Capital Exp-Non Council Assets,Grants
http://statistics.data.gov.uk/search?search=E07000114,Thanet District Council,14/11/2017,442985,595.00,,Bridge Security Cctv Ltd,BRI039,Corporate Governance,Revenue,Services,Facilities And Management Serv
http://statistics.data.gov.uk/search?search=E07000114,Thanet District Council,14/11/2017,443204,780.00,,Bt Payment Services Ltd,BTE003,Operational Services,Revenue,Communications & Computing,ICT
http://statistics.data.gov.uk/search?search=E07000114,Thanet District Council,14/11/2017,442746,8010.00,,Business Computer Solutions Ltd,BUS002,Corporate Governance,Revenue,Communications & Computing,ICT
http://statistics.data.gov.uk/search?search=E07000114,Thanet District Council,14/11/2017,443012,2913.48,,Canon (Uk) Ltd,CAN021,Corporate Governance,Revenue,"Equip, Furniture And Materials",Facilities And Management Serv
http://statistics.data.gov.uk/search?search=E07000114,Thanet District Council,14/11/2017,443013,832.06,,Canon (Uk) Ltd,CAN021,Corporate Governance,Revenue,"Equip, Furniture And Materials",Facilities And Management Serv
http://statistics.data.gov.uk/search?search=E07000114,Thanet District Council,14/11/2017,443126,1942.46,,Canon (Uk) Ltd,CAN021,Corporate Governance,Revenue,"Equip, Furniture And Materials",Facilities And Management Serv
http://statistics.data.gov.uk/search?search=E07000114,Thanet District Council,14/11/2017,443392,1262.41,,Canon (Uk) Ltd,CAN021,Corporate Governance,Revenue,"Equip, Furniture And Materials",Facilities And Management Serv
http://statistics.data.gov.uk/search?search=E07000114,Thanet District Council,14/11/2017,442853,44455.16,,Canterbury City Council,CAN004,East Kent Shared Services,Revenue,Grants & Subscriptions,Various Cats-Public Sector
http://statistics.data.gov.uk/search?search=E07000114,Thanet District Council,14/11/2017,442907,3458.90,,Cobalt Telephone Technologies Ltd,COB002,Operational Services,Revenue,Services,ICT
http://statistics.data.gov.uk/search?search=E07000114,Thanet District Council,14/11/2017,442922,516.24,,Cobalt Telephone Technologies Ltd,COB002,Operational Services,Revenue,Services,ICT
http://statistics.data.gov.uk/search?search=E07000114,Thanet District Council,14/11/2017,443245,1200.00,,Crittenden Commercial Limited,CRI009,Corporate Governance,Revenue,Services,Consultancy
http://statistics.data.gov.uk/search?search=E07000114,Thanet District Council,14/11/2017,443006,1225.00,,Dr Alexander Marshall,MAR100,Operational Services,Revenue,Services,Cemetery And Crematorium
http://statistics.data.gov.uk/search?search=E07000114,Thanet District Council,14/11/2017,442777,529.60,,Eagle Envelopes Ltd,EAG001,East Kent Shared Services,Revenue,"Print, Stat And Gen Off Exps",Stationery
http://statistics.data.gov.uk/search?search=E07000114,Thanet District Council,14/11/2017,442817,402.00,,East Kent Hose,EKH004,Operational Services,Revenue,Direct Transport Costs,Vehicle Management
http://statistics.data.gov.uk/search?search=E07000114,Thanet District Council,14/11/2017,442651,697.00,,Electrical Lighting Solutions Ltd,ELE013,Corporate Governance,Revenue,"Repairs,  Alter & Mtce - Build",Building Construction Material
http://statistics.data.gov.uk/search?search=E07000114,Thanet District Council,14/11/2017,442654,908.46,,Electrical Lighting Solutions Ltd,ELE013,Operational Services,Revenue,"Repairs,  Alter & Mtce - Build",Building Construction Material
http://statistics.data.gov.uk/search?search=E07000114,Thanet District Council,14/11/2017,442655,288.95,,Electrical Lighting Solutions Ltd,ELE013,Corporate Governance,Revenue,"Repairs,  Alter & Mtce - Build",Building Construction Material
http://statistics.data.gov.uk/search?search=E07000114,Thanet District Council,14/11/2017,442988,625.00,,Essentra Components Limited,ESS006,Operational Services,Revenue,"Equip, Furniture And Materials",Maritime Services
http://statistics.data.gov.uk/search?search=E07000114,Thanet District Council,14/11/2017,443409,4036.79,,Evermech Services Ltd,EVE011,Corporate Resources and S151,Balance Sheet,Capital Exp-Non Council Assets,Grants
http://statistics.data.gov.uk/search?search=E07000114,Thanet District Council,14/11/2017,443019,11907.19,,F M Conway Ltd,CON043,Operational Services,Revenue,"Repairs,  Alter & Mtce - Build",Construction-Repair And Maint
http://statistics.data.gov.uk/search?search=E07000114,Thanet District Council,14/11/2017,443396,269.20,,Family Mosaic Housing,FAM001,Corporate Resources and S151,Balance Sheet,Capital Exp-Non Council Assets,Housing Management
http://statistics.data.gov.uk/search?search=E07000114,Thanet District Council,14/11/2017,443397,1112.62,,Family Mosaic Housing,FAM001,Corporate Resources and S151,Balance Sheet,Capital Exp-Non Council Assets,Housing Management
http://statistics.data.gov.uk/search?search=E07000114,Thanet District Council,14/11/2017,443398,867.53,,Family Mosaic Housing,FAM001,Corporate Resources and S151,Balance Sheet,Capital Exp-Non Council Assets,Housing Management
http://statistics.data.gov.uk/search?search=E07000114,Thanet District Council,14/11/2017,443399,991.80,,Family Mosaic Housing,FAM001,Corporate Resources and S151,Balance Sheet,Capital Exp-Non Council Assets,Housing Management
http://statistics.data.gov.uk/search?search=E07000114,Thanet District Council,14/11/2017,443400,1032.72,,Family Mosaic Housing,FAM001,Corporate Resources and S151,Balance Sheet,Capital Exp-Non Council Assets,Housing Management
http://statistics.data.gov.uk/search?search=E07000114,Thanet District Council,14/11/2017,443402,1406.62,,Family Mosaic Housing,FAM001,Corporate Resources and S151,Balance Sheet,Capital Exp-Non Council Assets,Housing Management
http://statistics.data.gov.uk/search?search=E07000114,Thanet District Council,14/11/2017,443403,536.64,,Family Mosaic Housing,FAM001,Corporate Resources and S151,Balance Sheet,Capital Exp-Non Council Assets,Housing Management
http://statistics.data.gov.uk/search?search=E07000114,Thanet District Council,14/11/2017,443165,694.49,,Farrer Barnes Limited,FAR012,Corporate Resources and S151,Revenue,Agency Staff,Human Resources
http://statistics.data.gov.uk/search?search=E07000114,Thanet District Council,14/11/2017,443166,487.60,,Farrer Barnes Limited,FAR012,Corporate Resources and S151,Revenue,Agency Staff,Human Resources
http://statistics.data.gov.uk/search?search=E07000114,Thanet District Council,14/11/2017,442833,750.00,,Forecourt Installation Services Ltd,FOR021,Operational Services,Revenue,"Equip, Furniture And Materials",Maritime Services
http://statistics.data.gov.uk/search?search=E07000114,Thanet District Council,14/11/2017,442772,8257.60,,Fresh Acres Nurseries Limited,FRE017,Operational Services,Revenue,"Equip, Furniture And Materials",Horticultural
http://statistics.data.gov.uk/search?search=E07000114,Thanet District Council,14/11/2017,442947,850.00,,Friends For Mental Health (E Kent),FRI024,Community Services,Revenue,Services,Grants
http://statistics.data.gov.uk/search?search=E07000114,Thanet District Council,14/11/2017,442059,261.95,,G & G Forklifts,GGF001,Operational Services,Revenue,"Repairs,  Alter & Mtce - Build",Vehicle Management
http://statistics.data.gov.uk/search?search=E07000114,Thanet District Council,14/11/2017,442042,876.13,,G & W Gardner Building Cont Ltd,GAR001,Corporate Resources and S151,Balance Sheet,Community Assets,Construction-Repair And Maint
http://statistics.data.gov.uk/search?search=E07000114,Thanet District Council,14/11/2017,442043,5068.86,,G & W Gardner Building Cont Ltd,GAR001,Corporate Resources and S151,Balance Sheet,Community Assets,Construction-Repair And Maint
http://statistics.data.gov.uk/search?search=E07000114,Thanet District Council,14/11/2017,442991,501.52,,Gas Contract Services Ltd,GAS004,Corporate Resources and S151,Balance Sheet,Repairs And Mtce Holding A/C,Construction-Repair And Maint
http://statistics.data.gov.uk/search?search=E07000114,Thanet District Council,14/11/2017,442507,510.40,,H S Jackson & Son (Fencing) Ltd,JAC001,Operational Services,Revenue,"Equip, Furniture And Materials",Building Construction Material
http://statistics.data.gov.uk/search?search=E07000114,Thanet District Council,14/11/2017,442477,1360.00,,Harmer & Sons Grounds Maiint Ltd,HAR074,Operational Services,Revenue,"Equip, Furniture And Materials",Vehicle Management
http://statistics.data.gov.uk/search?search=E07000114,Thanet District Council,14/11/2017,442478,585.00,,Harmer & Sons Grounds Maiint Ltd,HAR074,Operational Services,Revenue,"Equip, Furniture And Materials",Vehicle Management
http://statistics.data.gov.uk/search?search=E07000114,Thanet District Council,14/11/2017,442934,525.00,,Hays Specialist Recruitment Ltd,HAY020,Community Services,Revenue,Agency Staff,Human Resources
http://statistics.data.gov.uk/search?search=E07000114,Thanet District Council,14/11/2017,443134,1006.25,,Hays Specialist Recruitment Ltd,HAY020,Community Services,Revenue,Agency Staff,Human Resources
http://statistics.data.gov.uk/search?search=E07000114,Thanet District Council,14/11/2017,442513,810.20,,Hi Way Services Ltd,HIW002,Operational Services,Revenue,"Repairs,  Alter & Mtce - Build",Highway Equipment And Material
http://statistics.data.gov.uk/search?search=E07000114,Thanet District Council,14/11/2017,443412,4604.40,,Howe Heating & Plumbing,HOW019,Corporate Resources and S151,Balance Sheet,Capital Exp-Non Council Assets,Grants
http://statistics.data.gov.uk/search?search=E07000114,Thanet District Council,14/11/2017,442497,816.75,,Hr Go (Kent) Ltd,HRG001,Operational Services,Revenue,Agency Staff,Human Resources
http://statistics.data.gov.uk/search?search=E07000114,Thanet District Council,14/11/2017,442499,449.55,,Hr Go (Kent) Ltd,HRG001,Operational Services,Revenue,Agency Staff,Human Resources
http://statistics.data.gov.uk/search?search=E07000114,Thanet District Council,14/11/2017,442920,486.55,,Hr Go (Kent) Ltd,HRG001,Operational Services,Revenue,Agency Staff,Human Resources
http://statistics.data.gov.uk/search?search=E07000114,Thanet District Council,14/11/2017,442921,267.30,,Hr Go (Kent) Ltd,HRG001,Operational Services,Revenue,Agency Staff,Human Resources
http://statistics.data.gov.uk/search?search=E07000114,Thanet District Council,14/11/2017,443405,9339.55,,Hubbard & Houghton Construction Ltd,HUB003,Corporate Resources and S151,Balance Sheet,Capital Exp-Non Council Assets,Grants
http://statistics.data.gov.uk/search?search=E07000114,Thanet District Council,14/11/2017,443410,5366.40,,Hubbard & Houghton Construction Ltd,HUB003,Corporate Resources and S151,Balance Sheet,Capital Exp-Non Council Assets,Grants
http://statistics.data.gov.uk/search?search=E07000114,Thanet District Council,14/11/2017,442923,568.50,,Keltic Ltd,KEL007,Operational Services,Revenue,"Clothes, Uniforms & Laundry",Clothing
http://statistics.data.gov.uk/search?search=E07000114,Thanet District Council,14/11/2017,443168,-448.64,,Level 3 Communications (Uk) Ltd,LEV005,Corporate Resources and S151,Balance Sheet,Telephone Holding Account,ICT
http://statistics.data.gov.uk/search?search=E07000114,Thanet District Council,14/11/2017,443172,-400.00,,Level 3 Communications (Uk) Ltd,LEV005,Corporate Resources and S151,Balance Sheet,Telephone Holding Account,ICT
http://statistics.data.gov.uk/search?search=E07000114,Thanet District Council,14/11/2017,443174,-400.00,,Level 3 Communications (Uk) Ltd,LEV005,Corporate Resources and S151,Balance Sheet,Telephone Holding Account,ICT
http://statistics.data.gov.uk/search?search=E07000114,Thanet District Council,14/11/2017,443205,1493.50,,Level 3 Communications (Uk) Ltd,LEV005,Corporate Resources and S151,Balance Sheet,Telephone Holding Account,ICT
http://statistics.data.gov.uk/search?search=E07000114,Thanet District Council,14/11/2017,443389,550.00,,Lovetts Ramsgate Ltd (Clients),LOV008,Community Services,Revenue,Grants & Subscriptions,Rent Deposits
http://statistics.data.gov.uk/search?search=E07000114,Thanet District Council,14/11/2017,442886,440.00,,Lyreco Uk Limited,LYR001,Corporate Governance,Revenue,"Print, Stat And Gen Off Exps",Stationery
http://statistics.data.gov.uk/search?search=E07000114,Thanet District Council,14/11/2017,442794,684.64,,Mears Ltd,MEA003,Corporate Resources and S151,Balance Sheet,Repairs And Mtce Holding A/C,Construction-Repair And Maint
http://statistics.data.gov.uk/search?search=E07000114,Thanet District Council,14/11/2017,442795,4861.39,,Mears Ltd,MEA003,Corporate Resources and S151,Balance Sheet,Repairs And Mtce Holding A/C,Construction-Repair And Maint
http://statistics.data.gov.uk/search?search=E07000114,Thanet District Council,14/11/2017,442796,1622.79,,Mears Ltd,MEA003,Corporate Resources and S151,Balance Sheet,Repairs And Mtce Holding A/C,Construction-Repair And Maint
http://statistics.data.gov.uk/search?search=E07000114,Thanet District Council,14/11/2017,442494,1500.00,,Michael Page Int Recruitment Ltd,PAG008,East Kent Shared Services,Revenue,Agency Staff,Human Resources
http://statistics.data.gov.uk/search?search=E07000114,Thanet District Council,14/11/2017,442990,750.00,,Michael Page Int Recruitment Ltd,PAG008,Corporate Resources and S151,Revenue,Services,Human Resources
http://statistics.data.gov.uk/search?search=E07000114,Thanet District Council,14/11/2017,443413,2508.00,,Mullaney Roofing Limited,MUL006,Corporate Resources and S151,Balance Sheet,Capital Exp-Non Council Assets,Grants
http://statistics.data.gov.uk/search?search=E07000114,Thanet District Council,14/11/2017,443018,7500.00,,Oasis Domestic Abuse Service Ltd,OAS003,Community Services,Revenue,Grants & Subscriptions,Non Trade Payee
http://statistics.data.gov.uk/search?search=E07000114,Thanet District Council,14/11/2017,442468,283.71,,Ocs Group Uk Ltd T/A Fountains,OCS005,Operational Services,Revenue,Fixtures & Fittings,Cleaning And Janitorial
http://statistics.data.gov.uk/search?search=E07000114,Thanet District Council,14/11/2017,442825,1300.00,,Office Of Communications,OFF006,Operational Services,Revenue,Services,ICT
http://statistics.data.gov.uk/search?search=E07000114,Thanet District Council,14/11/2017,442999,39712.33,,P & R Installation Company Limited,PRI035,Corporate Resources and S151,Balance Sheet,Repairs And Mtce Holding A/C,Building Construction Material
http://statistics.data.gov.uk/search?search=E07000114,Thanet District Council,14/11/2017,442818,132814.00,,Paramount Ind Property Services Llp,PAR074,Community Services,Revenue,Services,Housing Management
http://statistics.data.gov.uk/search?search=E07000114,Thanet District Council,14/11/2017,442743,95.00,,Parkeon Limited,PAR063,Corporate Governance,Revenue,"Equip, Furniture And Materials",Street And Traffic Management
http://statistics.data.gov.uk/search?search=E07000114,Thanet District Council,14/11/2017,442743,1422.10,,Parkeon Limited,PAR063,Operational Services,Revenue,"Equip, Furniture And Materials",Street And Traffic Management
http://statistics.data.gov.uk/search?search=E07000114,Thanet District Council,14/11/2017,443216,1117.00,,Peer 1 (Uk) Limited,PEE003,East Kent Shared Services,Revenue,Communications & Computing,ICT
http://statistics.data.gov.uk/search?search=E07000114,Thanet District Council,14/11/2017,442081,2496.00,,Playsafety Limited,PLA023,Operational Services,Revenue,Services,Health And Safety
http://statistics.data.gov.uk/search?search=E07000114,Thanet District Council,14/11/2017,442832,4850.00,,Powell Williams Llp,POW022,Corporate Governance,Revenue,"Repairs,  Alter & Mtce - Build",Construction-Repair And Maint
http://statistics.data.gov.uk/search?search=E07000114,Thanet District Council,14/11/2017,442851,293.58,,Ppg Arch Coatings Uk Ltd,PPG001,Operational Services,Revenue,"Equip, Furniture And Materials",Building Construction Material
http://statistics.data.gov.uk/search?search=E07000114,Thanet District Council,14/11/2017,443404,9238.54,,Premiere Projects Limited,PRE022,Corporate Resources and S151,Balance Sheet,Capital Exp-Non Council Assets,Grants
http://statistics.data.gov.uk/search?search=E07000114,Thanet District Council,14/11/2017,443132,226.00,,Probrand Ltd,PRO012,East Kent Shared Services,Revenue,Communications & Computing,ICT
http://statistics.data.gov.uk/search?search=E07000114,Thanet District Council,14/11/2017,442908,900.98,,Profile Security Services Limited,PRO018,Operational Services,Revenue,Services,Facilities And Management Serv
http://statistics.data.gov.uk/search?search=E07000114,Thanet District Council,14/11/2017,442580,1284.50,,Puls Global Ltd,PUL006,Operational Services,Revenue,"Equip, Furniture And Materials",Facilities And Management Serv
http://statistics.data.gov.uk/search?search=E07000114,Thanet District Council,14/11/2017,442677,455.00,,R Cannon,CAN007,Operational Services,Revenue,Services,Maritime Services
http://statistics.data.gov.uk/search?search=E07000114,Thanet District Council,14/11/2017,442992,245.00,,R Cannon,CAN007,Operational Services,Revenue,Services,Maritime Services
http://statistics.data.gov.uk/search?search=E07000114,Thanet District Council,14/11/2017,443149,490.00,,R Cannon,CAN007,Operational Services,Revenue,Services,Maritime Services
http://statistics.data.gov.uk/search?search=E07000114,Thanet District Council,14/11/2017,442671,350.00,,R J Broadley Tree Surgery,RJB002,Operational Services,Revenue,Grounds Mtce Costs,Horticultural
http://statistics.data.gov.uk/search?search=E07000114,Thanet District Council,14/11/2017,442814,258.00,,Railex File & Store Ltd,RAI010,Corporate Governance,Revenue,"Print, Stat And Gen Off Exps",Stationery
http://statistics.data.gov.uk/search?search=E07000114,Thanet District Council,14/11/2017,442496,2160.00,,Reactec Limited,REA008,Operational Services,Revenue,Communications & Computing,Vehicle Management
http://statistics.data.gov.uk/search?search=E07000114,Thanet District Council,14/11/2017,443119,817.87,,Royal Mail,ROY004,Corporate Governance,Revenue,Communications & Computing,Mail Services
http://statistics.data.gov.uk/search?search=E07000114,Thanet District Council,14/11/2017,442759,14067.99,,Scottish Water Business Stream Ltd,SCO019,Corporate Governance,Revenue,Water Services,Utilities
http://statistics.data.gov.uk/search?search=E07000114,Thanet District Council,14/11/2017,443363,2502.33,,Scottish Water Business Stream Ltd,SCO019,Operational Services,Revenue,Water Services,Utilities
http://statistics.data.gov.uk/search?search=E07000114,Thanet District Council,14/11/2017,443364,403.74,,Scottish Water Business Stream Ltd,SCO019,Operational Services,Revenue,Water Services,Utilities
http://statistics.data.gov.uk/search?search=E07000114,Thanet District Council,14/11/2017,443365,372.02,,Scottish Water Business Stream Ltd,SCO019,Operational Services,Revenue,Water Services,Utilities
http://statistics.data.gov.uk/search?search=E07000114,Thanet District Council,14/11/2017,443366,660.88,,Scottish Water Business Stream Ltd,SCO019,Operational Services,Revenue,Water Services,Utilities
http://statistics.data.gov.uk/search?search=E07000114,Thanet District Council,14/11/2017,443367,1762.13,,Scottish Water Business Stream Ltd,SCO019,Operational Services,Revenue,Water Services,Utilities
http://statistics.data.gov.uk/search?search=E07000114,Thanet District Council,14/11/2017,443369,-812.10,,Scottish Water Business Stream Ltd,SCO019,Operational Services,Revenue,Water Services,Utilities
http://statistics.data.gov.uk/search?search=E07000114,Thanet District Council,14/11/2017,443371,2052.90,,Scottish Water Business Stream Ltd,SCO019,Corporate Governance,Revenue,Water Services,Utilities
http://statistics.data.gov.uk/search?search=E07000114,Thanet District Council,14/11/2017,443373,483.33,,Scottish Water Business Stream Ltd,SCO019,Operational Services,Revenue,Water Services,Utilities
http://statistics.data.gov.uk/search?search=E07000114,Thanet District Council,14/11/2017,442504,249.99,,Screwfix Direct Ltd,SCR001,Operational Services,Revenue,"Equip, Furniture And Materials",Building Construction Material
http://statistics.data.gov.uk/search?search=E07000114,Thanet District Council,14/11/2017,442565,543.00,,Securitas Security Services (Uk) Ltd,SEC019,Operational Services,Revenue,"Equip, Furniture And Materials",Facilities And Management Serv
http://statistics.data.gov.uk/search?search=E07000114,Thanet District Council,14/11/2017,443001,1985.00,,Sellick Partnership Ltd,SEL011,Corporate Governance,Revenue,Services,Human Resources
http://statistics.data.gov.uk/search?search=E07000114,Thanet District Council,14/11/2017,443406,2294.95,,South East Building Company Limited,SEB001,Corporate Resources and S151,Balance Sheet,Capital Exp-Non Council Assets,Grants
http://statistics.data.gov.uk/search?search=E07000114,Thanet District Council,14/11/2017,443414,16530.43,,South East Building Company Limited,SEB001,Corporate Resources and S151,Balance Sheet,Capital Exp-Non Council Assets,Grants
http://statistics.data.gov.uk/search?search=E07000114,Thanet District Council,14/11/2017,443416,3090.00,,Southampton Marine Services Limited,SOU033,Corporate Resources and S151,Balance Sheet,Other Land And Buildings-Hra,Maritime Services
http://statistics.data.gov.uk/search?search=E07000114,Thanet District Council,14/11/2017,442439,594.73,,Southern Electric,SEL007,Corporate Governance,Revenue,Energy Costs,Utilities
http://statistics.data.gov.uk/search?search=E07000114,Thanet District Council,14/11/2017,443177,256.92,,Southern Electric,SEL007,Operational Services,Revenue,Energy Costs,Utilities
http://statistics.data.gov.uk/search?search=E07000114,Thanet District Council,14/11/2017,443178,314.56,,Southern Electric,SEL007,Operational Services,Revenue,Energy Costs,Utilities
http://statistics.data.gov.uk/search?search=E07000114,Thanet District Council,14/11/2017,443184,216.93,,Southern Electric,SEL007,Operational Services,Revenue,Energy Costs,Utilities
http://statistics.data.gov.uk/search?search=E07000114,Thanet District Council,14/11/2017,443195,5.34,,Southern Electric,SEL007,Community Services,Revenue,Energy Costs,Utilities
http://statistics.data.gov.uk/search?search=E07000114,Thanet District Council,14/11/2017,443195,571.30,,Southern Electric,SEL007,Operational Services,Revenue,Energy Costs,Utilities
http://statistics.data.gov.uk/search?search=E07000114,Thanet District Council,14/11/2017,443305,-594.73,,Southern Electric,SEL007,Corporate Governance,Revenue,Energy Costs,Utilities
http://statistics.data.gov.uk/search?search=E07000114,Thanet District Council,14/11/2017,442471,221.90,,Standfast Burglar Alarm Co (Ek) Ltd,STA003,Operational Services,Revenue,"Equip, Furniture And Materials",Facilities And Management Serv
http://statistics.data.gov.uk/search?search=E07000114,Thanet District Council,14/11/2017,443383,480.00,,Sycon Uk Ltd,SYC002,Community Services,Revenue,Grants & Subscriptions,Rent Deposits
http://statistics.data.gov.uk/search?search=E07000114,Thanet District Council,14/11/2017,443229,20000.00,,The Pipeline,PIP002,Community Services,Revenue,Grants & Subscriptions,Various Categories
http://statistics.data.gov.uk/search?search=E07000114,Thanet District Council,14/11/2017,443408,8227.19,,Trueden Disability Adaptations Ltd,TRU012,Corporate Resources and S151,Balance Sheet,Capital Exp-Non Council Assets,Grants
http://statistics.data.gov.uk/search?search=E07000114,Thanet District Council,14/11/2017,443004,8800.00,,Vector Resourcing Ltd,VEC001,East Kent Shared Services,Revenue,Agency Staff,Human Resources
http://statistics.data.gov.uk/search?search=E07000114,Thanet District Council,14/11/2017,443016,208.62,,Viridor Waste Management Ltd,VIR003,Corporate Governance,Revenue,Cleaning & Domestic Supplies,Environmental Services
http://statistics.data.gov.uk/search?search=E07000114,Thanet District Council,14/11/2017,443120,338.49,,Viridor Waste Management Ltd,VIR003,Corporate Governance,Revenue,Cleaning & Domestic Supplies,Environmental Services
http://statistics.data.gov.uk/search?search=E07000114,Thanet District Council,14/11/2017,443121,303.60,,Viridor Waste Management Ltd,VIR003,Corporate Governance,Revenue,Private Contractors,Environmental Services
http://statistics.data.gov.uk/search?search=E07000114,Thanet District Council,14/11/2017,443005,1800.00,,Westbrook Construction (Margate) Ltd,WES021,Operational Services,Revenue,"Repairs,  Alter & Mtce - Build",Various Categories
http://statistics.data.gov.uk/search?search=E07000114,Thanet District Council,15/11/2017,442501,635.83,,Adecco Uk Ltd,ADE005,Chief Executive,Revenue,Agency Staff,Human Resources
http://statistics.data.gov.uk/search?search=E07000114,Thanet District Council,15/11/2017,442932,697.22,,Adecco Uk Ltd,ADE005,Chief Executive,Revenue,Agency Staff,Human Resources
http://statistics.data.gov.uk/search?search=E07000114,Thanet District Council,15/11/2017,443315,635.83,,Adecco Uk Ltd,ADE005,Chief Executive,Revenue,Agency Staff,Human Resources
http://statistics.data.gov.uk/search?search=E07000114,Thanet District Council,15/11/2017,442310,721.00,,Bdm Business Solutions Limited,BDM001,Community Services,Revenue,Communications & Computing,ICT
http://statistics.data.gov.uk/search?search=E07000114,Thanet District Council,15/11/2017,442312,1242.50,,Hays Specialist Recruitment Ltd,HAY020,Community Services,Revenue,Agency Staff,Human Resources
http://statistics.data.gov.uk/search?search=E07000114,Thanet District Council,15/11/2017,442316,265.00,,Holt & Wotton Ltd,HOL001,Corporate Resources and S151,Balance Sheet,Repairs And Mtce Holding A/C,Building Construction Material
http://statistics.data.gov.uk/search?search=E07000114,Thanet District Council,15/11/2017,442457,1730.00,,J W Fluid Power,JWF001,Corporate Resources and S151,Balance Sheet,Other Land And Buildings-Hra,Consultancy
http://statistics.data.gov.uk/search?search=E07000114,Thanet District Council,15/11/2017,442457,3850.00,,J W Fluid Power,JWF001,Operational Services,Revenue,Services,Consultancy
http://statistics.data.gov.uk/search?search=E07000114,Thanet District Council,15/11/2017,442451,3430.00,,Kent County Council,KCC002,Community Services,Revenue,Services,Various Cats-Public Sector
http://statistics.data.gov.uk/search?search=E07000114,Thanet District Council,15/11/2017,442482,397.50,,M.T.S. Cleansing Services Ltd,MTS001,Operational Services,Revenue,Cleaning & Domestic Supplies,Environmental Services
http://statistics.data.gov.uk/search?search=E07000114,Thanet District Council,15/11/2017,442482,950.00,,M.T.S. Cleansing Services Ltd,MTS001,Operational Services,Revenue,"Repairs,  Alter & Mtce - Build",Environmental Services
http://statistics.data.gov.uk/search?search=E07000114,Thanet District Council,17/11/2017,N/A,257.11,,REDACTED PERSONAL DATA,N/A,East Kent Shared Services,Balance Sheet,Car Allowances,Non Trade Payee
http://statistics.data.gov.uk/search?search=E07000114,Thanet District Council,17/11/2017,N/A,335.91,,REDACTED PERSONAL DATA,N/A,East Kent Shared Services,Balance Sheet,Car Allowances,Non Trade Payee
http://statistics.data.gov.uk/search?search=E07000114,Thanet District Council,17/11/2017,N/A,459.29,,REDACTED PERSONAL DATA,N/A,East Kent Shared Services,Balance Sheet,Car Allowances,Non Trade Payee
http://statistics.data.gov.uk/search?search=E07000114,Thanet District Council,17/11/2017,N/A,331.93,,REDACTED PERSONAL DATA,N/A,Community Services,Balance Sheet,Car Allowances,Non Trade Payee
http://statistics.data.gov.uk/search?search=E07000114,Thanet District Council,17/11/2017,N/A,273.03,,REDACTED PERSONAL DATA,N/A,Community Services,Balance Sheet,Car Allowances,Non Trade Payee
http://statistics.data.gov.uk/search?search=E07000114,Thanet District Council,17/11/2017,N/A,332.73,,REDACTED PERSONAL DATA,N/A,Operational Services,Balance Sheet,Car Allowances,Non Trade Payee
http://statistics.data.gov.uk/search?search=E07000114,Thanet District Council,17/11/2017,N/A,328.75,,REDACTED PERSONAL DATA,N/A,Operational Services,Balance Sheet,Car Allowances,Non Trade Payee
http://statistics.data.gov.uk/search?search=E07000114,Thanet District Council,20/11/2017,443790,267237.00,,Kent & Medway Towns Fire Authority,KMT001,Corporate Resources and S151,Balance Sheet,Collection Fund - Preceptors,Various Cats-Public Sector
http://statistics.data.gov.uk/search?search=E07000114,Thanet District Council,20/11/2017,443789,4273992.00,,Kent County Council,KCC022,Corporate Resources and S151,Balance Sheet,Collection Fund - Preceptors,Various Cats-Public Sector
http://statistics.data.gov.uk/search?search=E07000114,Thanet District Council,20/11/2017,443788,566761.00,,Kent Police & Crime Commissioner,KPA003,Corporate Resources and S151,Balance Sheet,Collection Fund - Preceptors,Various Cats-Public Sector
http://statistics.data.gov.uk/search?search=E07000114,Thanet District Council,21/11/2017,443264,1373.12,,Aebi Schmidt Uk Limited,AEB002,Operational Services,Revenue,Direct Transport Costs,Vehicle Management
http://statistics.data.gov.uk/search?search=E07000114,Thanet District Council,21/11/2017,443542,2065.00,,All About Asbestos Limited,ALL044,Corporate Governance,Revenue,"Repairs,  Alter & Mtce - Build",Environmental Services
http://statistics.data.gov.uk/search?search=E07000114,Thanet District Council,21/11/2017,442783,434.80,,All Access Ltd,ALL031,Corporate Resources and S151,Balance Sheet,Rechargeable Works,Building Construction Material
http://statistics.data.gov.uk/search?search=E07000114,Thanet District Council,21/11/2017,443326,235.00,,All Sign Solutions Ltd,ALL002,Operational Services,Revenue,"Repairs,  Alter & Mtce - Build",Building Construction Material
http://statistics.data.gov.uk/search?search=E07000114,Thanet District Council,21/11/2017,442790,371.60,,Andy Morris,MOR028,Community Services,Revenue,Services,Arts And Leisure Services
http://statistics.data.gov.uk/search?search=E07000114,Thanet District Council,21/11/2017,442963,5450.04,,Ats Euromaster Ltd,ATS002,Operational Services,Revenue,Direct Transport Costs,Vehicle Management
http://statistics.data.gov.uk/search?search=E07000114,Thanet District Council,21/11/2017,443340,370.00,,Boxgreen Landscapes Ltd,BOX003,Corporate Governance,Revenue,"Repairs,  Alter & Mtce - Build",Construction-Repair And Maint
http://statistics.data.gov.uk/search?search=E07000114,Thanet District Council,21/11/2017,443565,2546.25,,Buckingham Futures Limited,BUC010,Community Services,Revenue,Agency Staff,Human Resources
http://statistics.data.gov.uk/search?search=E07000114,Thanet District Council,21/11/2017,443327,50.00,,C & S News,CSN001,Chief Executive,Revenue,"Print, Stat And Gen Off Exps",Facilities And Management Serv
http://statistics.data.gov.uk/search?search=E07000114,Thanet District Council,21/11/2017,443327,25.00,,C & S News,CSN001,Corporate Resources and S151,Revenue,"Print, Stat And Gen Off Exps",Facilities And Management Serv
http://statistics.data.gov.uk/search?search=E07000114,Thanet District Council,21/11/2017,443327,125.00,,C & S News,CSN001,Community Services,Revenue,"Print, Stat And Gen Off Exps",Facilities And Management Serv
http://statistics.data.gov.uk/search?search=E07000114,Thanet District Council,21/11/2017,443327,25.00,,C & S News,CSN001,Corporate Governance,Revenue,"Print, Stat And Gen Off Exps",Facilities And Management Serv
http://statistics.data.gov.uk/search?search=E07000114,Thanet District Council,21/11/2017,443327,75.00,,C & S News,CSN001,Operational Services,Revenue,"Print, Stat And Gen Off Exps",Facilities And Management Serv
http://statistics.data.gov.uk/search?search=E07000114,Thanet District Council,21/11/2017,441323,450.00,,Carol Peters,PET003,Community Services,Revenue,Services,Agency Payments
http://statistics.data.gov.uk/search?search=E07000114,Thanet District Council,21/11/2017,443266,368.10,,Carol Peters,PET003,Community Services,Revenue,Services,Agency Payments
http://statistics.data.gov.uk/search?search=E07000114,Thanet District Council,21/11/2017,442993,489.87,,Castle Automotive & Eng Supp Ltd,CAS024,Operational Services,Revenue,"Equip, Furniture And Materials",Vehicle Management
http://statistics.data.gov.uk/search?search=E07000114,Thanet District Council,21/11/2017,442773,2053.60,,Castle Fine Art Studio,CAS026,Community Services,Revenue,"Equip, Furniture And Materials",Arts And Leisure Services
http://statistics.data.gov.uk/search?search=E07000114,Thanet District Council,21/11/2017,443209,33743.50,,Certas Energy Uk Ltd,CER005,Operational Services,Revenue,Direct Transport Costs,Vehicle Management
http://statistics.data.gov.uk/search?search=E07000114,Thanet District Council,21/11/2017,443350,4051.20,,Certas Energy Uk Ltd,CER005,Operational Services,Revenue,"Equip, Furniture And Materials",Vehicle Management
http://statistics.data.gov.uk/search?search=E07000114,Thanet District Council,21/11/2017,442843,251.25,,Channel Commercials Plc,CCO001,Operational Services,Revenue,Direct Transport Costs,Vehicle Management
http://statistics.data.gov.uk/search?search=E07000114,Thanet District Council,21/11/2017,443537,1595.00,,Civica Uk Ltd,CIV003,East Kent Shared Services,Revenue,Communications & Computing,ICT
http://statistics.data.gov.uk/search?search=E07000114,Thanet District Council,21/11/2017,443618,5139.18,,Cloud Technology Solutions Ltd,CLO006,East Kent Shared Services,Revenue,Communications & Computing,ICT
http://statistics.data.gov.uk/search?search=E07000114,Thanet District Council,21/11/2017,443257,1696.00,,Cobalt Consulting (Uk) Limited,COB004,Corporate Governance,Revenue,Agency Staff,Human Resources
http://statistics.data.gov.uk/search?search=E07000114,Thanet District Council,21/11/2017,443233,31450.25,,Crown Estate,CRO022,Operational Services,Revenue,Rents,Maritime Services
http://statistics.data.gov.uk/search?search=E07000114,Thanet District Council,21/11/2017,443234,4877.50,,Crown Estate,CRO022,Operational Services,Revenue,Rents,Maritime Services
http://statistics.data.gov.uk/search?search=E07000114,Thanet District Council,21/11/2017,443235,25264.75,,Crown Estate,CRO022,Operational Services,Revenue,Rents,Maritime Services
http://statistics.data.gov.uk/search?search=E07000114,Thanet District Council,21/11/2017,443157,308.60,,Dennis Eagle Ltd,DEN005,Operational Services,Revenue,Direct Transport Costs,Vehicle Management
http://statistics.data.gov.uk/search?search=E07000114,Thanet District Council,21/11/2017,443159,249.74,,Dennis Eagle Ltd,DEN005,Operational Services,Revenue,Direct Transport Costs,Vehicle Management
http://statistics.data.gov.uk/search?search=E07000114,Thanet District Council,21/11/2017,443221,443.74,,Dennis Eagle Ltd,DEN005,Operational Services,Revenue,Direct Transport Costs,Vehicle Management
http://statistics.data.gov.uk/search?search=E07000114,Thanet District Council,21/11/2017,443354,392.19,,Dennis Eagle Ltd,DEN005,Operational Services,Revenue,Direct Transport Costs,Vehicle Management
http://statistics.data.gov.uk/search?search=E07000114,Thanet District Council,21/11/2017,443856,20000.00,,East Kent College,EAS018,Community Services,Revenue,Grants & Subscriptions,Education
http://statistics.data.gov.uk/search?search=E07000114,Thanet District Council,21/11/2017,442869,418.20,,East Kent Components Ltd,EKC006,Operational Services,Revenue,Direct Transport Costs,Vehicle Management
http://statistics.data.gov.uk/search?search=E07000114,Thanet District Council,21/11/2017,443559,451.18,,Elec-Sec Ltd,ELE014,Corporate Governance,Revenue,"Repairs,  Alter & Mtce - Build",Building Construction Material
http://statistics.data.gov.uk/search?search=E07000114,Thanet District Council,21/11/2017,443560,451.18,,Elec-Sec Ltd,ELE014,Corporate Governance,Revenue,"Repairs,  Alter & Mtce - Build",Building Construction Material
http://statistics.data.gov.uk/search?search=E07000114,Thanet District Council,21/11/2017,443583,273.80,,Electoral Reform Services,ELE010,Corporate Governance,Revenue,Communications & Computing,Facilities And Management Serv
http://statistics.data.gov.uk/search?search=E07000114,Thanet District Council,21/11/2017,443583,965.22,,Electoral Reform Services,ELE010,Corporate Governance,Revenue,"Print, Stat And Gen Off Exps",Facilities And Management Serv
http://statistics.data.gov.uk/search?search=E07000114,Thanet District Council,21/11/2017,443246,405.98,,F R Jones & Son Limited,JON024,Operational Services,Revenue,"Equip, Furniture And Materials",Horticultural
http://statistics.data.gov.uk/search?search=E07000114,Thanet District Council,21/11/2017,442827,1100.00,,Faithorn Farrell Timms Llp,FAI007,Community Services,Revenue,Services,Consultancy
http://statistics.data.gov.uk/search?search=E07000114,Thanet District Council,21/11/2017,443574,694.49,,Farrer Barnes Limited,FAR012,Corporate Resources and S151,Revenue,Agency Staff,Human Resources
http://statistics.data.gov.uk/search?search=E07000114,Thanet District Council,21/11/2017,443575,617.55,,Farrer Barnes Limited,FAR012,Corporate Resources and S151,Revenue,Agency Staff,Human Resources
http://statistics.data.gov.uk/search?search=E07000114,Thanet District Council,21/11/2017,442852,586.70,,Freight Transport Association,FRE007,Operational Services,Revenue,Direct Transport Costs,Human Resources
http://statistics.data.gov.uk/search?search=E07000114,Thanet District Council,21/11/2017,442801,750.00,,Gl Hearn Limited,GLH001,Corporate Resources and S151,Balance Sheet,Other Land And Buildings-Hra,Consultancy
http://statistics.data.gov.uk/search?search=E07000114,Thanet District Council,21/11/2017,443223,1000.00,,Global Generation Church,GLO006,Community Services,Revenue,Grants & Subscriptions,Facilities And Management Serv
http://statistics.data.gov.uk/search?search=E07000114,Thanet District Council,21/11/2017,443225,1000.00,,Global Generation Church,GLO006,Community Services,Revenue,Grants & Subscriptions,Facilities And Management Serv
http://statistics.data.gov.uk/search?search=E07000114,Thanet District Council,21/11/2017,443227,1000.00,,Global Generation Church,GLO006,Community Services,Revenue,Grants & Subscriptions,Facilities And Management Serv
http://statistics.data.gov.uk/search?search=E07000114,Thanet District Council,21/11/2017,443323,1423.92,,Gulliver'S Truck Hire Limited,GUL001,Operational Services,Revenue,Direct Transport Costs,Vehicle Management
http://statistics.data.gov.uk/search?search=E07000114,Thanet District Council,21/11/2017,442147,486.55,,Hr Go (Kent) Ltd,HRG001,Operational Services,Revenue,Agency Staff,Human Resources
http://statistics.data.gov.uk/search?search=E07000114,Thanet District Council,21/11/2017,442692,10683.05,,Hr Go (Kent) Ltd,HRG001,Operational Services,Revenue,Agency Staff,Human Resources
http://statistics.data.gov.uk/search?search=E07000114,Thanet District Council,21/11/2017,442919,855.84,,Hr Go (Kent) Ltd,HRG001,Operational Services,Revenue,Agency Staff,Human Resources
http://statistics.data.gov.uk/search?search=E07000114,Thanet District Council,21/11/2017,443123,9344.38,,Hr Go (Kent) Ltd,HRG001,Operational Services,Revenue,Agency Staff,Human Resources
http://statistics.data.gov.uk/search?search=E07000114,Thanet District Council,21/11/2017,443318,285.25,,Hr Go (Kent) Ltd,HRG001,Operational Services,Revenue,Agency Staff,Human Resources
http://statistics.data.gov.uk/search?search=E07000114,Thanet District Council,21/11/2017,443319,816.75,,Hr Go (Kent) Ltd,HRG001,Operational Services,Revenue,Agency Staff,Human Resources
http://statistics.data.gov.uk/search?search=E07000114,Thanet District Council,21/11/2017,443331,700.08,,Hr Go (Kent) Ltd,HRG001,Operational Services,Revenue,Agency Staff,Human Resources
http://statistics.data.gov.uk/search?search=E07000114,Thanet District Council,21/11/2017,443550,9127.71,,Hr Go (Kent) Ltd,HRG001,Operational Services,Revenue,Agency Staff,Human Resources
http://statistics.data.gov.uk/search?search=E07000114,Thanet District Council,21/11/2017,443576,475.00,,Institute Of Cemetery & Crem Mang,INS015,Corporate Resources and S151,Revenue,Training,Cemetery And Crematorium
http://statistics.data.gov.uk/search?search=E07000114,Thanet District Council,21/11/2017,441291,40320.00,,Isuzu Truck (Uk) Limited,ISU001,Corporate Resources and S151,Balance Sheet,Plant And Equipment,Vehicle Management
http://statistics.data.gov.uk/search?search=E07000114,Thanet District Council,21/11/2017,443595,40320.00,,Isuzu Truck (Uk) Limited,ISU001,Corporate Resources and S151,Balance Sheet,Plant And Equipment,Vehicle Management
http://statistics.data.gov.uk/search?search=E07000114,Thanet District Council,21/11/2017,443596,40320.00,,Isuzu Truck (Uk) Limited,ISU001,Corporate Resources and S151,Balance Sheet,Plant And Equipment,Vehicle Management
http://statistics.data.gov.uk/search?search=E07000114,Thanet District Council,21/11/2017,443632,7408.27,,Kent County Council (Kcs),KCC003,Corporate Governance,Revenue,Energy Costs,Facilities And Management Serv
http://statistics.data.gov.uk/search?search=E07000114,Thanet District Council,21/11/2017,443633,6797.55,,Kent County Council (Kcs),KCC003,Operational Services,Revenue,Energy Costs,Facilities And Management Serv
http://statistics.data.gov.uk/search?search=E07000114,Thanet District Council,21/11/2017,443634,1404.51,,Kent County Council (Kcs),KCC003,Operational Services,Revenue,Energy Costs,Facilities And Management Serv
http://statistics.data.gov.uk/search?search=E07000114,Thanet District Council,21/11/2017,443635,3328.52,,Kent County Council (Kcs),KCC003,Operational Services,Revenue,Energy Costs,Facilities And Management Serv
http://statistics.data.gov.uk/search?search=E07000114,Thanet District Council,21/11/2017,443636,843.36,,Kent County Council (Kcs),KCC003,Operational Services,Revenue,Energy Costs,Facilities And Management Serv
http://statistics.data.gov.uk/search?search=E07000114,Thanet District Council,21/11/2017,443637,972.57,,Kent County Council (Kcs),KCC003,Operational Services,Revenue,Energy Costs,Facilities And Management Serv
http://statistics.data.gov.uk/search?search=E07000114,Thanet District Council,21/11/2017,443638,1093.14,,Kent County Council (Kcs),KCC003,Operational Services,Revenue,Energy Costs,Facilities And Management Serv
http://statistics.data.gov.uk/search?search=E07000114,Thanet District Council,21/11/2017,443639,12294.03,,Kent County Council (Kcs),KCC003,Corporate Governance,Revenue,Energy Costs,Facilities And Management Serv
http://statistics.data.gov.uk/search?search=E07000114,Thanet District Council,21/11/2017,443653,2049.62,,Kent County Council (Kcs),KCC003,Operational Services,Revenue,Energy Costs,Facilities And Management Serv
http://statistics.data.gov.uk/search?search=E07000114,Thanet District Council,21/11/2017,443654,776.49,,Kent County Council (Kcs),KCC003,Community Services,Revenue,Energy Costs,Facilities And Management Serv
http://statistics.data.gov.uk/search?search=E07000114,Thanet District Council,21/11/2017,443655,312.25,,Kent County Council (Kcs),KCC003,Operational Services,Revenue,Energy Costs,Facilities And Management Serv
http://statistics.data.gov.uk/search?search=E07000114,Thanet District Council,21/11/2017,443351,10020.65,,Kingdom Security Limited,KIN039,Operational Services,Revenue,Services,Street And Traffic Management
http://statistics.data.gov.uk/search?search=E07000114,Thanet District Council,21/11/2017,443232,800.00,,Ling Metals Limited,LIN004,Operational Services,Revenue,Cleaning & Domestic Supplies,Environmental Services
http://statistics.data.gov.uk/search?search=E07000114,Thanet District Council,21/11/2017,443206,1079.72,,Lobster Van Hire Ltd,LOB001,Operational Services,Revenue,Cont Hire & Operating Lease,Vehicle Management
http://statistics.data.gov.uk/search?search=E07000114,Thanet District Council,21/11/2017,442918,556.31,,Mc Truck & Bus Ltd,MCT002,Operational Services,Revenue,Direct Transport Costs,Vehicle Management
http://statistics.data.gov.uk/search?search=E07000114,Thanet District Council,21/11/2017,442887,274.58,,Mears Ltd,MEA003,Operational Services,Revenue,"Repairs,  Alter & Mtce - Build",Construction-Repair And Maint
http://statistics.data.gov.uk/search?search=E07000114,Thanet District Council,21/11/2017,442888,869.69,,Mears Ltd,MEA003,Operational Services,Revenue,"Repairs,  Alter & Mtce - Build",Construction-Repair And Maint
http://statistics.data.gov.uk/search?search=E07000114,Thanet District Council,21/11/2017,442996,2040.90,,Mears Ltd,MEA003,Operational Services,Revenue,"Repairs,  Alter & Mtce - Build",Construction-Repair And Maint
http://statistics.data.gov.uk/search?search=E07000114,Thanet District Council,21/11/2017,442997,3106.48,,Mears Ltd,MEA003,Operational Services,Revenue,"Repairs,  Alter & Mtce - Build",Construction-Repair And Maint
http://statistics.data.gov.uk/search?search=E07000114,Thanet District Council,21/11/2017,443317,1174.51,,Mears Ltd,MEA003,Operational Services,Revenue,"Repairs,  Alter & Mtce - Build",Construction-Repair And Maint
http://statistics.data.gov.uk/search?search=E07000114,Thanet District Council,21/11/2017,443568,141.46,,Mears Ltd,MEA003,Community Services,Revenue,"Repairs,  Alter & Mtce - Build",Construction-Repair And Maint
http://statistics.data.gov.uk/search?search=E07000114,Thanet District Council,21/11/2017,443568,315.05,,Mears Ltd,MEA003,Corporate Governance,Revenue,"Repairs,  Alter & Mtce - Build",Construction-Repair And Maint
http://statistics.data.gov.uk/search?search=E07000114,Thanet District Council,21/11/2017,443568,334.35,,Mears Ltd,MEA003,Operational Services,Revenue,"Repairs,  Alter & Mtce - Build",Construction-Repair And Maint
http://statistics.data.gov.uk/search?search=E07000114,Thanet District Council,21/11/2017,443569,70.73,,Mears Ltd,MEA003,Community Services,Revenue,"Repairs,  Alter & Mtce - Build",Construction-Repair And Maint
http://statistics.data.gov.uk/search?search=E07000114,Thanet District Council,21/11/2017,443569,353.65,,Mears Ltd,MEA003,Corporate Governance,Revenue,"Repairs,  Alter & Mtce - Build",Construction-Repair And Maint
http://statistics.data.gov.uk/search?search=E07000114,Thanet District Council,21/11/2017,443569,212.19,,Mears Ltd,MEA003,Operational Services,Revenue,"Repairs,  Alter & Mtce - Build",Construction-Repair And Maint
http://statistics.data.gov.uk/search?search=E07000114,Thanet District Council,21/11/2017,443570,3407.57,,Mears Ltd,MEA003,Corporate Governance,Revenue,"Repairs,  Alter & Mtce - Build",Construction-Repair And Maint
http://statistics.data.gov.uk/search?search=E07000114,Thanet District Council,21/11/2017,442989,1500.00,,Michael Page Int Recruitment Ltd,PAG008,East Kent Shared Services,Revenue,Agency Staff,Human Resources
http://statistics.data.gov.uk/search?search=E07000114,Thanet District Council,21/11/2017,443337,1350.00,,Michael Page Int Recruitment Ltd,PAG008,East Kent Shared Services,Revenue,Agency Staff,Human Resources
http://statistics.data.gov.uk/search?search=E07000114,Thanet District Council,21/11/2017,443258,975.00,,Modus Film Productions Limited,MOD005,Community Services,Revenue,Services,Facilities And Management Serv
http://statistics.data.gov.uk/search?search=E07000114,Thanet District Council,21/11/2017,443259,975.00,,Modus Film Productions Limited,MOD005,Community Services,Revenue,Services,Facilities And Management Serv
http://statistics.data.gov.uk/search?search=E07000114,Thanet District Council,21/11/2017,442806,209.44,,Morgan Jones Ltd,MOR001,Corporate Governance,Revenue,Agency Staff,Human Resources
http://statistics.data.gov.uk/search?search=E07000114,Thanet District Council,21/11/2017,443150,524.29,,Morgan Jones Ltd,MOR001,East Kent Shared Services,Revenue,Agency Staff,Human Resources
http://statistics.data.gov.uk/search?search=E07000114,Thanet District Council,21/11/2017,443152,524.66,,Morgan Jones Ltd,MOR001,East Kent Shared Services,Revenue,Agency Staff,Human Resources
http://statistics.data.gov.uk/search?search=E07000114,Thanet District Council,21/11/2017,443616,474.70,,Morgan Jones Ltd,MOR001,East Kent Shared Services,Revenue,Agency Staff,Human Resources
http://statistics.data.gov.uk/search?search=E07000114,Thanet District Council,21/11/2017,443617,524.66,,Morgan Jones Ltd,MOR001,East Kent Shared Services,Revenue,Agency Staff,Human Resources
http://statistics.data.gov.uk/search?search=E07000114,Thanet District Council,21/11/2017,443296,387.62,,Nauticalia Limited,NAU001,Community Services,Revenue,"Equip, Furniture And Materials",Stationery
http://statistics.data.gov.uk/search?search=E07000114,Thanet District Council,21/11/2017,443146,21918.87,,P & R Installation Company Limited,PRI035,Corporate Resources and S151,Balance Sheet,Repairs And Mtce Holding A/C,Building Construction Material
http://statistics.data.gov.uk/search?search=E07000114,Thanet District Council,21/11/2017,443147,43482.43,,P & R Installation Company Limited,PRI035,Corporate Resources and S151,Balance Sheet,Repairs And Mtce Holding A/C,Building Construction Material
http://statistics.data.gov.uk/search?search=E07000114,Thanet District Council,21/11/2017,443657,450.16,,Premier Paper Group Limited,PRE035,Corporate Governance,Revenue,"Print, Stat And Gen Off Exps",Stationery
http://statistics.data.gov.uk/search?search=E07000114,Thanet District Council,21/11/2017,442493,24021.26,,Profile Security Services Limited,PRO018,Operational Services,Revenue,Services,Facilities And Management Serv
http://statistics.data.gov.uk/search?search=E07000114,Thanet District Council,21/11/2017,443141,1416.40,,Profile Security Services Limited,PRO018,Operational Services,Revenue,Services,Facilities And Management Serv
http://statistics.data.gov.uk/search?search=E07000114,Thanet District Council,21/11/2017,443148,1843.50,,Profile Security Services Limited,PRO018,Operational Services,Revenue,Services,Facilities And Management Serv
http://statistics.data.gov.uk/search?search=E07000114,Thanet District Council,21/11/2017,442336,630.00,,R S S (Wessex) Limited,RSS002,Operational Services,Revenue,Agency Staff,Human Resources
http://statistics.data.gov.uk/search?search=E07000114,Thanet District Council,21/11/2017,443332,630.00,,R S S (Wessex) Limited,RSS002,Operational Services,Revenue,Agency Staff,Human Resources
http://statistics.data.gov.uk/search?search=E07000114,Thanet District Council,21/11/2017,443333,673.75,,R S S (Wessex) Limited,RSS002,Operational Services,Revenue,Agency Staff,Human Resources
http://statistics.data.gov.uk/search?search=E07000114,Thanet District Council,21/11/2017,443284,249.50,,Rexel Uk Limited,REX003,Operational Services,Revenue,"Repairs,  Alter & Mtce - Build",Building Construction Material
http://statistics.data.gov.uk/search?search=E07000114,Thanet District Council,21/11/2017,442846,3960.00,,Riverside Truck Rental Limited,RIV005,Operational Services,Revenue,Cont Hire & Operating Lease,Vehicle Management
http://statistics.data.gov.uk/search?search=E07000114,Thanet District Council,21/11/2017,443623,1405.40,,Scottish Water Business Stream Ltd,SCO019,Operational Services,Revenue,Water Services,Utilities
http://statistics.data.gov.uk/search?search=E07000114,Thanet District Council,21/11/2017,443625,453.91,,Scottish Water Business Stream Ltd,SCO019,Operational Services,Revenue,Water Services,Utilities
http://statistics.data.gov.uk/search?search=E07000114,Thanet District Council,21/11/2017,443626,357.50,,Scottish Water Business Stream Ltd,SCO019,Operational Services,Revenue,Water Services,Utilities
http://statistics.data.gov.uk/search?search=E07000114,Thanet District Council,21/11/2017,443627,356.53,,Scottish Water Business Stream Ltd,SCO019,Operational Services,Revenue,Water Services,Utilities
http://statistics.data.gov.uk/search?search=E07000114,Thanet District Council,21/11/2017,443650,579.90,,Scottish Water Business Stream Ltd,SCO019,Operational Services,Revenue,Water Services,Utilities
http://statistics.data.gov.uk/search?search=E07000114,Thanet District Council,21/11/2017,442680,2556.00,,Sellick Partnership Ltd,SEL011,Corporate Governance,Revenue,Services,Human Resources
http://statistics.data.gov.uk/search?search=E07000114,Thanet District Council,21/11/2017,443352,1917.00,,Sellick Partnership Ltd,SEL011,Corporate Governance,Revenue,Services,Human Resources
http://statistics.data.gov.uk/search?search=E07000114,Thanet District Council,21/11/2017,443825,1766.00,,Serco Ltd,SER002,Corporate Governance,Revenue,"Equip, Furniture And Materials",Building Construction Material
http://statistics.data.gov.uk/search?search=E07000114,Thanet District Council,21/11/2017,443577,960.00,,Sharpe Pritchard Llp,SHA030,East Kent Shared Services,Revenue,Services,Legal Services
http://statistics.data.gov.uk/search?search=E07000114,Thanet District Council,21/11/2017,442958,567.51,,Southern Electric,SEL007,Corporate Governance,Revenue,Energy Costs,Utilities
http://statistics.data.gov.uk/search?search=E07000114,Thanet District Council,21/11/2017,443629,-567.51,,Southern Electric,SEL007,Corporate Governance,Revenue,Energy Costs,Utilities
http://statistics.data.gov.uk/search?search=E07000114,Thanet District Council,21/11/2017,443630,368.08,,Southern Electric,SEL007,Corporate Governance,Revenue,Energy Costs,Utilities
http://statistics.data.gov.uk/search?search=E07000114,Thanet District Council,21/11/2017,443558,689.00,,Stagecoach Services Limited,STA023,Corporate Resources and S151,Balance Sheet,Staff Bus Permits Holding A/C,Public Transport
http://statistics.data.gov.uk/search?search=E07000114,Thanet District Council,21/11/2017,443170,227.49,,Suregreen Limited,SUR017,Operational Services,Revenue,"Repairs,  Alter & Mtce - Build",Construction-Repair And Maint
http://statistics.data.gov.uk/search?search=E07000114,Thanet District Council,21/11/2017,442804,700.00,,The Duncan & Graham Partnership Ltd,DUN015,Corporate Resources and S151,Balance Sheet,Council Dwellings,Consultancy
http://statistics.data.gov.uk/search?search=E07000114,Thanet District Council,21/11/2017,443242,261.72,,Veolia Es (Uk) Ltd,VEO001,Operational Services,Revenue,Cleaning & Domestic Supplies,Environmental Services
http://statistics.data.gov.uk/search?search=E07000114,Thanet District Council,21/11/2017,443295,400.72,,Viridian Energy Solutions Limited,VIR005,Corporate Resources and S151,Balance Sheet,Repairs And Mtce Holding A/C,Facilities And Management Serv
http://statistics.data.gov.uk/search?search=E07000114,Thanet District Council,21/11/2017,443278,345.00,,W Brazil & Bros,BRA001,Operational Services,Revenue,Grounds Mtce Costs,Environmental Services
http://statistics.data.gov.uk/search?search=E07000114,Thanet District Council,21/11/2017,443280,400.00,,W Brazil & Bros,BRA001,Operational Services,Revenue,Grounds Mtce Costs,Environmental Services
http://statistics.data.gov.uk/search?search=E07000114,Thanet District Council,23/11/2017,442836,784.93,,Allstar Business Solutions Ltd,ALL038,Operational Services,Revenue,Direct Transport Costs,Vehicle Management
http://statistics.data.gov.uk/search?search=E07000114,Thanet District Council,23/11/2017,443689,638482.00,,Maidstone Borough Council,MAI002,Corporate Resources and S151,Revenue,Revenue Financing,Various Cats-Public Sector
http://statistics.data.gov.uk/search?search=E07000114,Thanet District Council,23/11/2017,443689,250173.00,,Maidstone Borough Council,MAI002,Corporate Resources and S151,Balance Sheet,Collection Fund,Various Cats-Public Sector
http://statistics.data.gov.uk/search?search=E07000114,Thanet District Council,23/11/2017,443694,883.15,,Santander,SAN017,Corporate Resources and S151,Revenue,Services,Various Categories
http://statistics.data.gov.uk/search?search=E07000114,Thanet District Council,23/11/2017,443696,3934.69,,Worldpay Ltd,WOR008,Corporate Resources and S151,Revenue,Services,Financial Services
http://statistics.data.gov.uk/search?search=E07000114,Thanet District Council,23/11/2017,443697,2680.63,,Worldpay Ltd,WOR008,Corporate Resources and S151,Revenue,Services,Financial Services
http://statistics.data.gov.uk/search?search=E07000114,Thanet District Council,23/11/2017,443699,388.46,,Worldpay Ltd,WOR008,Corporate Resources and S151,Revenue,Services,Financial Services
http://statistics.data.gov.uk/search?search=E07000114,Thanet District Council,24/11/2017,442784,495.00,,All Access Ltd,ALL031,Community Services,Revenue,Services,Building Construction Material
http://statistics.data.gov.uk/search?search=E07000114,Thanet District Council,24/11/2017,438250,1025.50,,Arco Limited,ARC001,Operational Services,Revenue,"Clothes, Uniforms & Laundry",Clothing
http://statistics.data.gov.uk/search?search=E07000114,Thanet District Council,24/11/2017,442842,1170.00,,B & B 63,BB6001,Community Services,Revenue,Services,Housing Management
http://statistics.data.gov.uk/search?search=E07000114,Thanet District Council,24/11/2017,444097,1425.97,,Co-Operative Bank Paypoint,COO018,Corporate Resources and S151,Revenue,Services,Financial Services
http://statistics.data.gov.uk/search?search=E07000114,Thanet District Council,24/11/2017,444097,475.33,,Co-Operative Bank Paypoint,COO018,Community Services,Revenue,Services,Financial Services
http://statistics.data.gov.uk/search?search=E07000114,Thanet District Council,24/11/2017,442941,660.00,,Florence Court Hotel Ltd,FLO009,Community Services,Revenue,Services,Housing Management
http://statistics.data.gov.uk/search?search=E07000114,Thanet District Council,24/11/2017,442942,1240.00,,Florence Court Hotel Ltd,FLO009,Community Services,Revenue,Services,Housing Management
http://statistics.data.gov.uk/search?search=E07000114,Thanet District Council,24/11/2017,442944,1085.00,,Florence Court Hotel Ltd,FLO009,Community Services,Revenue,Services,Housing Management
http://statistics.data.gov.uk/search?search=E07000114,Thanet District Council,24/11/2017,442946,1085.00,,Florence Court Hotel Ltd,FLO009,Community Services,Revenue,Services,Housing Management
http://statistics.data.gov.uk/search?search=E07000114,Thanet District Council,24/11/2017,442948,1860.00,,Florence Court Hotel Ltd,FLO009,Community Services,Revenue,Services,Housing Management
http://statistics.data.gov.uk/search?search=E07000114,Thanet District Council,24/11/2017,442949,930.00,,Florence Court Hotel Ltd,FLO009,Community Services,Revenue,Services,Housing Management
http://statistics.data.gov.uk/search?search=E07000114,Thanet District Council,24/11/2017,443690,278.62,,Nat West Bank,NWE001,Corporate Resources and S151,Revenue,Services,Various Categories
http://statistics.data.gov.uk/search?search=E07000114,Thanet District Council,24/11/2017,442822,960.00,,Oak Housing Limited,OAK008,Community Services,Revenue,Services,Housing Management
http://statistics.data.gov.uk/search?search=E07000114,Thanet District Council,24/11/2017,442465,481.00,,Ocs Group Uk Ltd T/A Fountains,OCS005,Operational Services,Revenue,Cleaning & Domestic Supplies,Cleaning And Janitorial
http://statistics.data.gov.uk/search?search=E07000114,Thanet District Council,24/11/2017,442467,948.61,,Ocs Group Uk Ltd T/A Fountains,OCS005,Operational Services,Revenue,Fixtures & Fittings,Cleaning And Janitorial
http://statistics.data.gov.uk/search?search=E07000114,Thanet District Council,24/11/2017,444057,18296.90,,Ocs Group Uk Ltd T/A Fountains,OCS005,Operational Services,Revenue,Cleaning & Domestic Supplies,Cleaning And Janitorial
http://statistics.data.gov.uk/search?search=E07000114,Thanet District Council,24/11/2017,442454,2588.56,,Ohuk Limited,OHU001,Operational Services,Revenue,Agency Staff,Human Resources
http://statistics.data.gov.uk/search?search=E07000114,Thanet District Council,24/11/2017,442744,4346.24,,Potter Raper Partnership,POT006,Corporate Resources and S151,Balance Sheet,Other Land And Buildings-Hra,Consultancy
http://statistics.data.gov.uk/search?search=E07000114,Thanet District Council,24/11/2017,444085,500.00,,REDACTED PERSONAL DATA,N/A,Community Services,Revenue,Other Transfer Payments,Non Trade Payee
http://statistics.data.gov.uk/search?search=E07000114,Thanet District Council,24/11/2017,442847,3960.00,,Riverside Truck Rental Limited,RIV005,Operational Services,Revenue,Cont Hire & Operating Lease,Vehicle Management
http://statistics.data.gov.uk/search?search=E07000114,Thanet District Council,24/11/2017,443692,1618.11,,Santander,SAN017,Corporate Resources and S151,Revenue,Services,Various Categories
http://statistics.data.gov.uk/search?search=E07000114,Thanet District Council,24/11/2017,443692,539.37,,Santander,SAN017,Community Services,Revenue,Services,Various Categories
http://statistics.data.gov.uk/search?search=E07000114,Thanet District Council,24/11/2017,442841,1085.00,,Schellenburg Guesthouse,SCH008,Community Services,Revenue,Services,Housing Management
http://statistics.data.gov.uk/search?search=E07000114,Thanet District Council,24/11/2017,443701,-115662.00,,Secretary Of State,SEC003,Corporate Resources and S151,Revenue,Revenue Financing,Government Agencies
http://statistics.data.gov.uk/search?search=E07000114,Thanet District Council,24/11/2017,443701,1402811.00,,Secretary Of State,SEC003,Corporate Resources and S151,Balance Sheet,Collection Fund,Government Agencies
http://statistics.data.gov.uk/search?search=E07000114,Thanet District Council,24/11/2017,442682,3908.33,,The Glenwood Hotel,GLE007,Community Services,Revenue,Services,Housing Management
http://statistics.data.gov.uk/search?search=E07000114,Thanet District Council,24/11/2017,442683,3383.35,,The Glenwood Hotel,GLE007,Community Services,Revenue,Services,Housing Management
http://statistics.data.gov.uk/search?search=E07000114,Thanet District Council,24/11/2017,442686,3208.34,,The Glenwood Hotel,GLE007,Community Services,Revenue,Services,Housing Management
http://statistics.data.gov.uk/search?search=E07000114,Thanet District Council,24/11/2017,442687,3079.18,,The Glenwood Hotel,GLE007,Community Services,Revenue,Services,Housing Management
http://statistics.data.gov.uk/search?search=E07000114,Thanet District Council,24/11/2017,444086,2700.00,,Web Box Cardiff Limited,WEB018,Corporate Resources and S151,Revenue,Services,ICT
http://statistics.data.gov.uk/search?search=E07000114,Thanet District Council,27/11/2017,PC10193,15.99,,123 Reg,N/A,Corporate Governance,Revenue,Communications & Computing,ICT
http://statistics.data.gov.uk/search?search=E07000114,Thanet District Council,27/11/2017,PC10174,40.79,,Alibris UK,N/A,Corporate Governance,Revenue,"Print, Stat And Gen Off Exps",Stationery
http://statistics.data.gov.uk/search?search=E07000114,Thanet District Council,27/11/2017,PC10138,33.00,,Amazon,N/A,Corporate Governance,Revenue,"Print, Stat And Gen Off Exps",Stationery
http://statistics.data.gov.uk/search?search=E07000114,Thanet District Council,27/11/2017,PC10188,53.28,,Amazon,N/A,Operational Services,Revenue,"Equip, Furniture And Materials",Stationery
http://statistics.data.gov.uk/search?search=E07000114,Thanet District Council,27/11/2017,PC10189,38.14,,Amazon,N/A,Operational Services,Revenue,"Equip, Furniture And Materials",Stationery
http://statistics.data.gov.uk/search?search=E07000114,Thanet District Council,27/11/2017,PC10163,10.99,1.84,Amazon UK Marketplace,N/A,Community Services,Revenue,"Print, Stat And Gen Off Exps",Stationery
http://statistics.data.gov.uk/search?search=E07000114,Thanet District Council,27/11/2017,PC10186,2.80,0.47,Amazon UK Marketplace,N/A,East Kent Shared Services,Revenue,Communications & Computing,Stationery
http://statistics.data.gov.uk/search?search=E07000114,Thanet District Council,27/11/2017,PC10159,40.65,,Amazon.co.uk,N/A,East Kent Shared Services,Revenue,"Equip, Furniture And Materials",Stationery
http://statistics.data.gov.uk/search?search=E07000114,Thanet District Council,27/11/2017,PC10139,33.33,,Argos,N/A,Operational Services,Revenue,"Equip, Furniture And Materials",Facilities And Management Serv
http://statistics.data.gov.uk/search?search=E07000114,Thanet District Council,27/11/2017,PC10113,67.12,,Asda,N/A,Corporate Governance,Revenue,Catering,Catering
http://statistics.data.gov.uk/search?search=E07000114,Thanet District Council,27/11/2017,PC10166,63.95,,Bloomsbury Publishing,N/A,Community Services,Revenue,"Equip, Furniture And Materials",Stationery
http://statistics.data.gov.uk/search?search=E07000114,Thanet District Council,27/11/2017,PC10191,63.94,,Booker Limited Broadstairs,N/A,Corporate Governance,Revenue,Catering,Catering
http://statistics.data.gov.uk/search?search=E07000114,Thanet District Council,27/11/2017,PC10192,43.16,,Booker Limited Broadstairs,N/A,Corporate Governance,Revenue,Catering,Catering
http://statistics.data.gov.uk/search?search=E07000114,Thanet District Council,27/11/2017,PC10185,63.12,,Booker Ltd,N/A,Operational Services,Revenue,Catering,Catering
http://statistics.data.gov.uk/search?search=E07000114,Thanet District Council,27/11/2017,PC10200,45.60,,BPP.Com,N/A,Corporate Resources and S151,Revenue,Training,Stationery
http://statistics.data.gov.uk/search?search=E07000114,Thanet District Council,27/11/2017,PC10136,108.30,,Bunnings Warehouse,N/A,Operational Services,Revenue,"Equip, Furniture And Materials",Building Construction Material
http://statistics.data.gov.uk/search?search=E07000114,Thanet District Council,27/11/2017,PC10167,121.00,,Canterbury Combined Court,N/A,Community Services,Revenue,Services,Various Cats-Public Sector
http://statistics.data.gov.uk/search?search=E07000114,Thanet District Council,27/11/2017,PC10156,121.00,,Canterbury County Court,N/A,Community Services,Revenue,Services,Various Cats-Public Sector
http://statistics.data.gov.uk/search?search=E07000114,Thanet District Council,27/11/2017,PC10157,332.50,,Currys,N/A,Operational Services,Revenue,Communications & Computing,Facilities And Management Serv
http://statistics.data.gov.uk/search?search=E07000114,Thanet District Council,27/11/2017,PC10199,66.66,,Currys,N/A,Operational Services,Revenue,"Equip, Furniture And Materials",Facilities And Management Serv
http://statistics.data.gov.uk/search?search=E07000114,Thanet District Council,27/11/2017,PC10197,80.00,,DVLA,N/A,Operational Services,Revenue,Direct Transport Costs,Various Cats-Public Sector
http://statistics.data.gov.uk/search?search=E07000114,Thanet District Council,27/11/2017,PC10198,80.00,,DVLA,N/A,Operational Services,Revenue,Direct Transport Costs,Various Cats-Public Sector
http://statistics.data.gov.uk/search?search=E07000114,Thanet District Council,27/11/2017,PC10195,210.00,,DVLA Enforcement Centre,N/A,Operational Services,Revenue,Direct Transport Costs,Various Cats-Public Sector
http://statistics.data.gov.uk/search?search=E07000114,Thanet District Council,27/11/2017,PC10196,210.00,,DVLA Enforcement Centre,N/A,Operational Services,Revenue,Direct Transport Costs,Various Cats-Public Sector
http://statistics.data.gov.uk/search?search=E07000114,Thanet District Council,27/11/2017,PC10132,242.50,,DVLA Vehicle Tax,N/A,Operational Services,Revenue,Direct Transport Costs,Various Cats-Public Sector
http://statistics.data.gov.uk/search?search=E07000114,Thanet District Council,27/11/2017,PC10150,242.50,,DVLA Vehicle Tax,N/A,Operational Services,Revenue,Direct Transport Costs,Various Cats-Public Sector
http://statistics.data.gov.uk/search?search=E07000114,Thanet District Council,27/11/2017,PC10151,242.50,,DVLA Vehicle Tax,N/A,Operational Services,Revenue,Direct Transport Costs,Various Cats-Public Sector
http://statistics.data.gov.uk/search?search=E07000114,Thanet District Council,27/11/2017,PC10152,242.50,,DVLA Vehicle Tax,N/A,Operational Services,Revenue,Direct Transport Costs,Various Cats-Public Sector
http://statistics.data.gov.uk/search?search=E07000114,Thanet District Council,27/11/2017,PC10153,242.50,,DVLA Vehicle Tax,N/A,Operational Services,Revenue,Direct Transport Costs,Various Cats-Public Sector
http://statistics.data.gov.uk/search?search=E07000114,Thanet District Council,27/11/2017,PC10154,242.50,,DVLA Vehicle Tax,N/A,Operational Services,Revenue,Direct Transport Costs,Various Cats-Public Sector
http://statistics.data.gov.uk/search?search=E07000114,Thanet District Council,27/11/2017,PC10169,242.50,,DVLA Vehicle Tax,N/A,Operational Services,Revenue,Direct Transport Costs,Various Cats-Public Sector
http://statistics.data.gov.uk/search?search=E07000114,Thanet District Council,27/11/2017,PC10170,242.50,,DVLA Vehicle Tax,N/A,Operational Services,Revenue,Direct Transport Costs,Various Cats-Public Sector
http://statistics.data.gov.uk/search?search=E07000114,Thanet District Council,27/11/2017,PC10171,242.50,,DVLA Vehicle Tax,N/A,Operational Services,Revenue,Direct Transport Costs,Various Cats-Public Sector
http://statistics.data.gov.uk/search?search=E07000114,Thanet District Council,27/11/2017,PC10172,242.50,,DVLA Vehicle Tax,N/A,Operational Services,Revenue,Direct Transport Costs,Various Cats-Public Sector
http://statistics.data.gov.uk/search?search=E07000114,Thanet District Council,27/11/2017,PC10206,75.50,,East Midland Trains,N/A,Corporate Governance,Revenue,Public Transport,Human Resources
http://statistics.data.gov.uk/search?search=E07000114,Thanet District Council,27/11/2017,PC10214,5.83,,Elepos.com,N/A,East Kent Shared Services,Revenue,"Print, Stat And Gen Off Exps",Stationery
http://statistics.data.gov.uk/search?search=E07000114,Thanet District Council,27/11/2017,PC10215,4.99,,Elepos.com,N/A,East Kent Shared Services,Revenue,"Print, Stat And Gen Off Exps",Stationery
http://statistics.data.gov.uk/search?search=E07000114,Thanet District Council,27/11/2017,PC10182,16.50,,Firstaid 4Less,N/A,Operational Services,Revenue,"Equip, Furniture And Materials",Healthcare
http://statistics.data.gov.uk/search?search=E07000114,Thanet District Council,27/11/2017,PC10121,4.80,,Great Western Railway,N/A,Operational Services,Revenue,Public Transport,Human Resources
http://statistics.data.gov.uk/search?search=E07000114,Thanet District Council,27/11/2017,PC10207,1512.00,,HMCTS-Kent099,N/A,East Kent Shared Services,Revenue,Services,Various Cats-Public Sector
http://statistics.data.gov.uk/search?search=E07000114,Thanet District Council,27/11/2017,PC10208,1941.00,,HMCTS-Kent099,N/A,East Kent Shared Services,Revenue,Services,Various Cats-Public Sector
http://statistics.data.gov.uk/search?search=E07000114,Thanet District Council,27/11/2017,PC10209,5034.00,,HMCTS-Kent099,N/A,East Kent Shared Services,Revenue,Services,Various Cats-Public Sector
http://statistics.data.gov.uk/search?search=E07000114,Thanet District Council,27/11/2017,PC10210,36.00,,HMCTS-Kent099,N/A,East Kent Shared Services,Revenue,Services,Various Cats-Public Sector
http://statistics.data.gov.uk/search?search=E07000114,Thanet District Council,27/11/2017,PC10211,27.00,,HMCTS-Kent099,N/A,East Kent Shared Services,Revenue,Services,Various Cats-Public Sector
http://statistics.data.gov.uk/search?search=E07000114,Thanet District Council,27/11/2017,PC10212,90.00,,HMCTS-Kent099,N/A,East Kent Shared Services,Revenue,Services,Various Cats-Public Sector
http://statistics.data.gov.uk/search?search=E07000114,Thanet District Council,27/11/2017,PC10168,79.00,13.17,Holiday Inn Express,N/A,Community Services,Revenue,Expenses,Human Resources
http://statistics.data.gov.uk/search?search=E07000114,Thanet District Council,27/11/2017,PC10240,99.98,,Ideal Item & Product Ltd,N/A,Operational Services,Revenue,"Equip, Furniture And Materials",Environmental Services
http://statistics.data.gov.uk/search?search=E07000114,Thanet District Council,27/11/2017,PC10176,495.00,,IT Governance UK,N/A,Corporate Governance,Revenue,"Print, Stat And Gen Off Exps",ICT
http://statistics.data.gov.uk/search?search=E07000114,Thanet District Council,27/11/2017,PC10216,71.20,11.87,Jurys Inn Manchester,N/A,East Kent Shared Services,Revenue,Expenses,Human Resources
http://statistics.data.gov.uk/search?search=E07000114,Thanet District Council,27/11/2017,PC10181,79.10,,London & South Eastern,N/A,Community Services,Revenue,Public Transport,Human Resources
http://statistics.data.gov.uk/search?search=E07000114,Thanet District Council,27/11/2017,PC10222,39.60,,London & South Eastern,N/A,Community Services,Revenue,Public Transport,Human Resources
http://statistics.data.gov.uk/search?search=E07000114,Thanet District Council,27/11/2017,PC10187,20.00,,Love2Shop,N/A,Operational Services,Revenue,Services,Financial Services
http://statistics.data.gov.uk/search?search=E07000114,Thanet District Council,27/11/2017,PC10183,130.00,,Nadpo,N/A,Corporate Governance,Revenue,Grants & Subscriptions,Financial Services
http://statistics.data.gov.uk/search?search=E07000114,Thanet District Council,27/11/2017,PC10117,325.00,,Possessionclaim.Gov,N/A,Community Services,Revenue,Services,Various Cats-Public Sector
http://statistics.data.gov.uk/search?search=E07000114,Thanet District Council,27/11/2017,PC10118,325.00,,Possessionclaim.Gov,N/A,Community Services,Revenue,Services,Various Cats-Public Sector
http://statistics.data.gov.uk/search?search=E07000114,Thanet District Council,27/11/2017,PC10127,325.00,,Possessionclaim.Gov,N/A,Community Services,Revenue,Services,Various Cats-Public Sector
http://statistics.data.gov.uk/search?search=E07000114,Thanet District Council,27/11/2017,PC10131,325.00,,Possessionclaim.Gov,N/A,Community Services,Revenue,Services,Various Cats-Public Sector
http://statistics.data.gov.uk/search?search=E07000114,Thanet District Council,27/11/2017,PC10165,325.00,,Possessionclaim.Gov,N/A,Community Services,Revenue,Services,Various Cats-Public Sector
http://statistics.data.gov.uk/search?search=E07000114,Thanet District Council,27/11/2017,PC10201,121.00,,Possessionclaim.Gov,N/A,Community Services,Revenue,Services,Various Cats-Public Sector
http://statistics.data.gov.uk/search?search=E07000114,Thanet District Council,27/11/2017,PC10202,325.00,,Possessionclaim.Gov,N/A,Community Services,Revenue,Services,Various Cats-Public Sector
http://statistics.data.gov.uk/search?search=E07000114,Thanet District Council,27/11/2017,PC10204,121.00,,Possessionclaim.Gov,N/A,Community Services,Revenue,Services,Various Cats-Public Sector
http://statistics.data.gov.uk/search?search=E07000114,Thanet District Council,27/11/2017,PC10158,152.50,,Post Office Counter,N/A,Operational Services,Revenue,Direct Transport Costs,Vehicle Management
http://statistics.data.gov.uk/search?search=E07000114,Thanet District Council,27/11/2017,PC10194,57.08,,Premier Inn,N/A,Community Services,Revenue,Expenses,Human Resources
http://statistics.data.gov.uk/search?search=E07000114,Thanet District Council,27/11/2017,PC10180,3.50,,Royal Albion Hotel,N/A,Community Services,Revenue,Catering,Human Resources
http://statistics.data.gov.uk/search?search=E07000114,Thanet District Council,27/11/2017,PC10161,139.00,,Shutterstock,N/A,Corporate Resources and S151,Revenue,"Print, Stat And Gen Off Exps",Facilities And Management Serv
http://statistics.data.gov.uk/search?search=E07000114,Thanet District Council,27/11/2017,PC10177,2.92,,Six Card C/Less Stock,N/A,Community Services,Revenue,Car Allowances,Human Resources
http://statistics.data.gov.uk/search?search=E07000114,Thanet District Council,27/11/2017,PC10203,135.80,,South Eastern Web,N/A,Corporate Resources and S151,Revenue,Public Transport,Human Resources
http://statistics.data.gov.uk/search?search=E07000114,Thanet District Council,27/11/2017,PC10124,52.90,,Southeastern Web,N/A,Corporate Resources and S151,Revenue,Public Transport,Human Resources
http://statistics.data.gov.uk/search?search=E07000114,Thanet District Council,27/11/2017,PC10125,45.30,,Southeastern Web,N/A,Chief Executive,Revenue,Public Transport,Human Resources
http://statistics.data.gov.uk/search?search=E07000114,Thanet District Council,27/11/2017,PC10126,79.10,,Southeastern Web,N/A,Corporate Resources and S151,Revenue,Public Transport,Human Resources
http://statistics.data.gov.uk/search?search=E07000114,Thanet District Council,27/11/2017,PC10137,71.00,,Southeastern Web,N/A,Community Services,Revenue,Public Transport,Human Resources
http://statistics.data.gov.uk/search?search=E07000114,Thanet District Council,27/11/2017,PC10146,41.40,,Southeastern Web,N/A,Community Services,Revenue,Public Transport,Human Resources
http://statistics.data.gov.uk/search?search=E07000114,Thanet District Council,27/11/2017,PC10184,20.80,,Southeastern Web,N/A,Corporate Governance,Revenue,Expenses,Human Resources
http://statistics.data.gov.uk/search?search=E07000114,Thanet District Council,27/11/2017,PC10190,13.30,,Southeastern Web,N/A,Community Services,Revenue,Public Transport,Human Resources
http://statistics.data.gov.uk/search?search=E07000114,Thanet District Council,27/11/2017,PC10205,51.30,,Southeastern Web,N/A,Chief Executive,Revenue,Public Transport,Human Resources
http://statistics.data.gov.uk/search?search=E07000114,Thanet District Council,27/11/2017,PC10225,103.80,,Southeastern Web,N/A,Community Services,Revenue,Public Transport,Human Resources
http://statistics.data.gov.uk/search?search=E07000114,Thanet District Council,27/11/2017,PC10130,55.00,,Thanet County Court,N/A,Operational Services,Revenue,Services,Various Cats-Public Sector
http://statistics.data.gov.uk/search?search=E07000114,Thanet District Council,27/11/2017,PC10155,355.00,,Thanet County Court,N/A,Community Services,Revenue,Services,Various Cats-Public Sector
http://statistics.data.gov.uk/search?search=E07000114,Thanet District Council,27/11/2017,PC10175,255.00,,Thanet County Court,N/A,Community Services,Revenue,Services,Various Cats-Public Sector
http://statistics.data.gov.uk/search?search=E07000114,Thanet District Council,27/11/2017,PC10213,520.00,86.67,The Angel Hotel,N/A,East Kent Shared Services,Revenue,Expenses,Human Resources
http://statistics.data.gov.uk/search?search=E07000114,Thanet District Council,27/11/2017,PC10119,318.00,,The Law Society,N/A,Corporate Governance,Revenue,Employee Related Schemes,Financial Services
http://statistics.data.gov.uk/search?search=E07000114,Thanet District Council,27/11/2017,PC10178,58.33,,The Portland Hotel,N/A,Community Services,Revenue,Expenses,Human Resources
http://statistics.data.gov.uk/search?search=E07000114,Thanet District Council,27/11/2017,PC10179,58.33,,The Portland Hotel,N/A,Community Services,Revenue,Expenses,Human Resources
http://statistics.data.gov.uk/search?search=E07000114,Thanet District Council,27/11/2017,PC10173,74.96,,The Range,N/A,Operational Services,Revenue,"Equip, Furniture And Materials",Facilities And Management Serv
http://statistics.data.gov.uk/search?search=E07000114,Thanet District Council,27/11/2017,PC10162,147.00,,TVlicensing.co.uk,N/A,Operational Services,Revenue,Services,Various Cats-Public Sector
http://statistics.data.gov.uk/search?search=E07000114,Thanet District Council,27/11/2017,PC10160,328.95,,UK Test Instruments,N/A,Community Services,Revenue,"Equip, Furniture And Materials",Environmental Services
http://statistics.data.gov.uk/search?search=E07000114,Thanet District Council,27/11/2017,PC10164,115.00,,UK Test Instruments,N/A,Community Services,Revenue,"Equip, Furniture And Materials",Environmental Services
http://statistics.data.gov.uk/search?search=E07000114,Thanet District Council,27/11/2017,PC10221,115.00,19.17,Walpole Bay Hotel,N/A,Community Services,Revenue,Rents,Human Resources
http://statistics.data.gov.uk/search?search=E07000114,Thanet District Council,27/11/2017,PC10135,294.00,49,Westminster-Briefing,N/A,Corporate Resources and S151,Revenue,Public Transport,Human Resources
http://statistics.data.gov.uk/search?search=E07000114,Thanet District Council,27/11/2017,PC10218,6.54,,Wilko,N/A,Corporate Governance,Revenue,"Equip, Furniture And Materials",Facilities And Management Serv
http://statistics.data.gov.uk/search?search=E07000114,Thanet District Council,29/11/2017,443142,488.78,,A W Warner & Sons Ltd,WAR006,Operational Services,Revenue,"Repairs,  Alter & Mtce - Build",Horticultural
http://statistics.data.gov.uk/search?search=E07000114,Thanet District Council,29/11/2017,443251,8244.00,,Allen Scott Ltd,ALL046,Operational Services,Revenue,Services,Construction-Repair And Maint
http://statistics.data.gov.uk/search?search=E07000114,Thanet District Council,29/11/2017,443705,804.00,,Aston Walker,AST008,Community Services,Revenue,Services,Cemetery And Crematorium
http://statistics.data.gov.uk/search?search=E07000114,Thanet District Council,29/11/2017,443673,1513.75,,Buckingham Futures Limited,BUC010,Community Services,Revenue,Agency Staff,Human Resources
http://statistics.data.gov.uk/search?search=E07000114,Thanet District Council,29/11/2017,443598,1254.00,,Business Computer Solutions Ltd,BUS002,Community Services,Revenue,Communications & Computing,ICT
http://statistics.data.gov.uk/search?search=E07000114,Thanet District Council,29/11/2017,443769,60.00,,Business Computer Solutions Ltd,BUS002,Corporate Governance,Balance Sheet,Communications & Computing,ICT
http://statistics.data.gov.uk/search?search=E07000114,Thanet District Council,29/11/2017,443770,5392.50,,Business Computer Solutions Ltd,BUS002,Corporate Governance,Revenue,Communications & Computing,ICT
http://statistics.data.gov.uk/search?search=E07000114,Thanet District Council,29/11/2017,443667,300.00,,C J Doors & Shutters Limited,CJD002,Operational Services,Revenue,"Repairs,  Alter & Mtce - Build",Building Construction Material
http://statistics.data.gov.uk/search?search=E07000114,Thanet District Council,29/11/2017,443966,966.33,,Calibre Cleaning Ltd,CAL010,Corporate Governance,Revenue,Cleaning & Domestic Supplies,Cleaning And Janitorial
http://statistics.data.gov.uk/search?search=E07000114,Thanet District Council,29/11/2017,443819,500.00,,Canterbury City Council,CAN004,Operational Services,Revenue,"Equip, Furniture And Materials",Various Cats-Public Sector
http://statistics.data.gov.uk/search?search=E07000114,Thanet District Council,29/11/2017,443820,1400.00,,Canterbury City Council,CAN004,Corporate Resources and S151,Balance Sheet,Plant And Equipment,Various Cats-Public Sector
http://statistics.data.gov.uk/search?search=E07000114,Thanet District Council,29/11/2017,443827,19878.33,,Canterbury City Council,CAN004,East Kent Shared Services,Revenue,Grants & Subscriptions,Various Cats-Public Sector
http://statistics.data.gov.uk/search?search=E07000114,Thanet District Council,29/11/2017,443757,2384.45,,Ccs Media Limited,CCS003,Corporate Resources and S151,Revenue,Communications & Computing,ICT
http://statistics.data.gov.uk/search?search=E07000114,Thanet District Council,29/11/2017,443751,1696.00,,Cobalt Consulting (Uk) Limited,COB004,Corporate Governance,Revenue,Agency Staff,Human Resources
http://statistics.data.gov.uk/search?search=E07000114,Thanet District Council,29/11/2017,443768,250.00,,Countrystyle Recycling Limited,COU019,Operational Services,Revenue,Cont Hire & Operating Lease,Environmental Services
http://statistics.data.gov.uk/search?search=E07000114,Thanet District Council,29/11/2017,443267,37527.31,,Dcb (Kent) Ltd,DCB001,Corporate Resources and S151,Balance Sheet,Repairs And Mtce Holding A/C,Construction-Repair And Maint
http://statistics.data.gov.uk/search?search=E07000114,Thanet District Council,29/11/2017,443783,1141.18,,Dennis Eagle Ltd,DEN005,Operational Services,Revenue,Direct Transport Costs,Vehicle Management
http://statistics.data.gov.uk/search?search=E07000114,Thanet District Council,29/11/2017,443349,2200.00,,Dixon Searle Partnership Limited,DIX007,Community Services,Revenue,Services,Consultancy
http://statistics.data.gov.uk/search?search=E07000114,Thanet District Council,29/11/2017,443325,6520.00,,Drury Mcpherson Partnership,DRU003,Community Services,Revenue,Services,Legal Services
http://statistics.data.gov.uk/search?search=E07000114,Thanet District Council,29/11/2017,443772,267.00,,East Kent Hose,EKH004,Operational Services,Revenue,Direct Transport Costs,Vehicle Management
http://statistics.data.gov.uk/search?search=E07000114,Thanet District Council,29/11/2017,443743,319.50,,East Kent Leaflet Distribution,EAS026,Operational Services,Revenue,Services,Facilities And Management Serv
http://statistics.data.gov.uk/search?search=E07000114,Thanet District Council,29/11/2017,443806,254.67,,Esri (Uk) Ltd,ESR001,Corporate Resources and S151,Revenue,Communications & Computing,ICT
http://statistics.data.gov.uk/search?search=E07000114,Thanet District Council,29/11/2017,443806,509.33,,Esri (Uk) Ltd,ESR001,East Kent Shared Services,Revenue,Communications & Computing,ICT
http://statistics.data.gov.uk/search?search=E07000114,Thanet District Council,29/11/2017,444129,1007.66,,Family Mosaic Housing,FAM001,Corporate Resources and S151,Balance Sheet,Capital Exp-Non Council Assets,Housing Management
http://statistics.data.gov.uk/search?search=E07000114,Thanet District Council,29/11/2017,444132,1104.36,,Family Mosaic Housing,FAM001,Corporate Resources and S151,Balance Sheet,Capital Exp-Non Council Assets,Housing Management
http://statistics.data.gov.uk/search?search=E07000114,Thanet District Council,29/11/2017,444133,1460.61,,Family Mosaic Housing,FAM001,Corporate Resources and S151,Balance Sheet,Capital Exp-Non Council Assets,Housing Management
http://statistics.data.gov.uk/search?search=E07000114,Thanet District Council,29/11/2017,444135,1234.53,,Family Mosaic Housing,FAM001,Corporate Resources and S151,Balance Sheet,Capital Exp-Non Council Assets,Housing Management
http://statistics.data.gov.uk/search?search=E07000114,Thanet District Council,29/11/2017,444136,1463.57,,Family Mosaic Housing,FAM001,Corporate Resources and S151,Balance Sheet,Capital Exp-Non Council Assets,Housing Management
http://statistics.data.gov.uk/search?search=E07000114,Thanet District Council,29/11/2017,443849,694.49,,Farrer Barnes Limited,FAR012,Corporate Resources and S151,Revenue,Agency Staff,Human Resources
http://statistics.data.gov.uk/search?search=E07000114,Thanet District Council,29/11/2017,443378,675.00,,Finden Consulting Ltd,FIN014,Corporate Resources and S151,Revenue,Training,Human Resources
http://statistics.data.gov.uk/search?search=E07000114,Thanet District Council,29/11/2017,443586,635.00,,Frandham Boarding Kennels,FRA010,Operational Services,Revenue,Services,Environmental Services
http://statistics.data.gov.uk/search?search=E07000114,Thanet District Council,29/11/2017,443587,349.00,,Frandham Boarding Kennels,FRA010,Operational Services,Revenue,Services,Environmental Services
http://statistics.data.gov.uk/search?search=E07000114,Thanet District Council,29/11/2017,443589,307.00,,Frandham Boarding Kennels,FRA010,Operational Services,Revenue,Services,Environmental Services
http://statistics.data.gov.uk/search?search=E07000114,Thanet District Council,29/11/2017,443784,519.00,,Gambling Commission,GAM004,Corporate Resources and S151,Revenue,Services,Financial Services
http://statistics.data.gov.uk/search?search=E07000114,Thanet District Council,29/11/2017,443252,416.67,,Goodwins,GOO001,Community Services,Revenue,Services,Horticultural
http://statistics.data.gov.uk/search?search=E07000114,Thanet District Council,29/11/2017,443674,1172.50,,Hays Specialist Recruitment Ltd,HAY020,Community Services,Revenue,Agency Staff,Human Resources
http://statistics.data.gov.uk/search?search=E07000114,Thanet District Council,29/11/2017,443122,517.74,,Hr Go (Kent) Ltd,HRG001,Operational Services,Revenue,Agency Staff,Human Resources
http://statistics.data.gov.uk/search?search=E07000114,Thanet District Council,29/11/2017,443320,449.55,,Hr Go (Kent) Ltd,HRG001,Operational Services,Revenue,Agency Staff,Human Resources
http://statistics.data.gov.uk/search?search=E07000114,Thanet District Council,29/11/2017,443321,486.55,,Hr Go (Kent) Ltd,HRG001,Operational Services,Revenue,Agency Staff,Human Resources
http://statistics.data.gov.uk/search?search=E07000114,Thanet District Council,29/11/2017,443549,573.24,,Hr Go (Kent) Ltd,HRG001,Operational Services,Revenue,Agency Staff,Human Resources
http://statistics.data.gov.uk/search?search=E07000114,Thanet District Council,29/11/2017,443773,967.30,,Hr Go (Kent) Ltd,HRG001,Operational Services,Revenue,Agency Staff,Human Resources
http://statistics.data.gov.uk/search?search=E07000114,Thanet District Council,29/11/2017,443774,655.79,,Hr Go (Kent) Ltd,HRG001,Operational Services,Revenue,Agency Staff,Human Resources
http://statistics.data.gov.uk/search?search=E07000114,Thanet District Council,29/11/2017,443777,816.75,,Hr Go (Kent) Ltd,HRG001,Operational Services,Revenue,Agency Staff,Human Resources
http://statistics.data.gov.uk/search?search=E07000114,Thanet District Council,29/11/2017,443824,244.36,,Hr Go (Kent) Ltd,HRG001,Operational Services,Revenue,Agency Staff,Human Resources
http://statistics.data.gov.uk/search?search=E07000114,Thanet District Council,29/11/2017,443829,9401.20,,Hr Go (Kent) Ltd,HRG001,Operational Services,Revenue,Agency Staff,Human Resources
http://statistics.data.gov.uk/search?search=E07000114,Thanet District Council,29/11/2017,444191,352.55,,Hr Go (Kent) Ltd,HRG001,Operational Services,Revenue,Agency Staff,Human Resources
http://statistics.data.gov.uk/search?search=E07000114,Thanet District Council,29/11/2017,444192,559.02,,Hr Go (Kent) Ltd,HRG001,Operational Services,Revenue,Agency Staff,Human Resources
http://statistics.data.gov.uk/search?search=E07000114,Thanet District Council,29/11/2017,444193,474.34,,Hr Go (Kent) Ltd,HRG001,Operational Services,Revenue,Agency Staff,Human Resources
http://statistics.data.gov.uk/search?search=E07000114,Thanet District Council,29/11/2017,444139,8397.21,,Hubbard & Houghton Construction Ltd,HUB003,Corporate Resources and S151,Balance Sheet,Capital Exp-Non Council Assets,Grants
http://statistics.data.gov.uk/search?search=E07000114,Thanet District Council,29/11/2017,443620,850.00,,Independent Reviews Ltd,IND013,Community Services,Revenue,Services,Consultancy
http://statistics.data.gov.uk/search?search=E07000114,Thanet District Council,29/11/2017,443766,1293.00,,J Redpath Buchanan & Co Ltd,RED001,Operational Services,Revenue,"Repairs,  Alter & Mtce - Build",Building Construction Material
http://statistics.data.gov.uk/search?search=E07000114,Thanet District Council,29/11/2017,444128,639.00,,John Gale,GAL001,Corporate Resources and S151,Balance Sheet,Capital Exp-Non Council Assets,Grants
http://statistics.data.gov.uk/search?search=E07000114,Thanet District Council,29/11/2017,444131,866.60,,John Gale,GAL001,Corporate Resources and S151,Balance Sheet,Capital Exp-Non Council Assets,Grants
http://statistics.data.gov.uk/search?search=E07000114,Thanet District Council,29/11/2017,444134,1673.40,,John Gale,GAL001,Corporate Resources and S151,Balance Sheet,Capital Exp-Non Council Assets,Grants
http://statistics.data.gov.uk/search?search=E07000114,Thanet District Council,29/11/2017,444253,75266.00,,Kent County Council,KCC002,Corporate Resources and S151,Balance Sheet,Insurance Holding Account,Various Cats-Public Sector
http://statistics.data.gov.uk/search?search=E07000114,Thanet District Council,29/11/2017,443581,3671.67,,Kgb Cleaning & Support Services Ltd,KGB001,Operational Services,Revenue,Cleaning & Domestic Supplies,Cleaning And Janitorial
http://statistics.data.gov.uk/search?search=E07000114,Thanet District Council,29/11/2017,444143,9169.69,,Lifestyle (Kent) Ltd,LIF008,Corporate Resources and S151,Balance Sheet,Capital Exp-Non Council Assets,Grants
http://statistics.data.gov.uk/search?search=E07000114,Thanet District Council,29/11/2017,443212,249.66,,Lyreco Uk Limited,LYR001,Chief Executive,Revenue,"Equip, Furniture And Materials",Stationery
http://statistics.data.gov.uk/search?search=E07000114,Thanet District Council,29/11/2017,443212,14.72,,Lyreco Uk Limited,LYR001,Community Services,Revenue,"Print, Stat And Gen Off Exps",Stationery
http://statistics.data.gov.uk/search?search=E07000114,Thanet District Council,29/11/2017,443779,411.84,,Lyreco Uk Limited,LYR001,Operational Services,Revenue,"Print, Stat And Gen Off Exps",Stationery
http://statistics.data.gov.uk/search?search=E07000114,Thanet District Council,29/11/2017,443780,239.85,,Lyreco Uk Limited,LYR001,Corporate Resources and S151,Balance Sheet,"Print, Stat And Gen Off Exps",Stationery
http://statistics.data.gov.uk/search?search=E07000114,Thanet District Council,29/11/2017,443780,18.28,,Lyreco Uk Limited,LYR001,Corporate Resources and S151,Balance Sheet,Stationery Stores,Stationery
http://statistics.data.gov.uk/search?search=E07000114,Thanet District Council,29/11/2017,443797,440.00,,Lyreco Uk Limited,LYR001,Corporate Governance,Revenue,"Print, Stat And Gen Off Exps",Stationery
http://statistics.data.gov.uk/search?search=E07000114,Thanet District Council,29/11/2017,443312,549.60,,Main Man Supplies Ltd,MAI001,Operational Services,Revenue,"Clothes, Uniforms & Laundry",Clothing
http://statistics.data.gov.uk/search?search=E07000114,Thanet District Council,29/11/2017,443571,1817.45,,Mears Ltd,MEA003,Community Services,Revenue,"Repairs,  Alter & Mtce - Build",Construction-Repair And Maint
http://statistics.data.gov.uk/search?search=E07000114,Thanet District Council,29/11/2017,443572,2784.31,,Mears Ltd,MEA003,Community Services,Revenue,"Repairs,  Alter & Mtce - Build",Construction-Repair And Maint
http://statistics.data.gov.uk/search?search=E07000114,Thanet District Council,29/11/2017,443573,98240.85,,Mears Ltd,MEA003,Community Services,Revenue,"Repairs,  Alter & Mtce - Build",Construction-Repair And Maint
http://statistics.data.gov.uk/search?search=E07000114,Thanet District Council,29/11/2017,443652,223.17,,Mears Ltd,MEA003,Corporate Resources and S151,Balance Sheet,Council Dwellings,Construction-Repair And Maint
http://statistics.data.gov.uk/search?search=E07000114,Thanet District Council,29/11/2017,443659,28730.66,,Mears Ltd,MEA003,Corporate Resources and S151,Balance Sheet,Repairs And Mtce Holding A/C,Construction-Repair And Maint
http://statistics.data.gov.uk/search?search=E07000114,Thanet District Council,29/11/2017,443660,7629.64,,Mears Ltd,MEA003,Corporate Resources and S151,Balance Sheet,Repairs And Mtce Holding A/C,Construction-Repair And Maint
http://statistics.data.gov.uk/search?search=E07000114,Thanet District Council,29/11/2017,443661,23339.99,,Mears Ltd,MEA003,Corporate Resources and S151,Balance Sheet,Repairs And Mtce Holding A/C,Construction-Repair And Maint
http://statistics.data.gov.uk/search?search=E07000114,Thanet District Council,29/11/2017,443662,27046.41,,Mears Ltd,MEA003,Corporate Resources and S151,Balance Sheet,Repairs And Mtce Holding A/C,Construction-Repair And Maint
http://statistics.data.gov.uk/search?search=E07000114,Thanet District Council,29/11/2017,443664,249.96,,Mears Ltd,MEA003,Corporate Resources and S151,Balance Sheet,Repairs And Mtce Holding A/C,Construction-Repair And Maint
http://statistics.data.gov.uk/search?search=E07000114,Thanet District Council,29/11/2017,443976,2019.06,,Mears Ltd,MEA003,Corporate Resources and S151,Balance Sheet,Repairs And Mtce Holding A/C,Construction-Repair And Maint
http://statistics.data.gov.uk/search?search=E07000114,Thanet District Council,29/11/2017,443977,8390.12,,Mears Ltd,MEA003,Corporate Resources and S151,Balance Sheet,Repairs And Mtce Holding A/C,Construction-Repair And Maint
http://statistics.data.gov.uk/search?search=E07000114,Thanet District Council,29/11/2017,443978,38510.45,,Mears Ltd,MEA003,Corporate Resources and S151,Balance Sheet,Repairs And Mtce Holding A/C,Construction-Repair And Maint
http://statistics.data.gov.uk/search?search=E07000114,Thanet District Council,29/11/2017,443979,2463.32,,Mears Ltd,MEA003,Corporate Resources and S151,Balance Sheet,Repairs And Mtce Holding A/C,Construction-Repair And Maint
http://statistics.data.gov.uk/search?search=E07000114,Thanet District Council,29/11/2017,443981,8010.24,,Mears Ltd,MEA003,Corporate Resources and S151,Balance Sheet,Repairs And Mtce Holding A/C,Construction-Repair And Maint
http://statistics.data.gov.uk/search?search=E07000114,Thanet District Council,29/11/2017,443968,1524.75,,Med Clean South Ltd,MED015,Operational Services,Revenue,"Repairs,  Alter & Mtce - Build",Cleaning And Janitorial
http://statistics.data.gov.uk/search?search=E07000114,Thanet District Council,29/11/2017,443579,559.50,,Michelle Williams,WIL064,Community Services,Revenue,Services,Arts And Leisure Services
http://statistics.data.gov.uk/search?search=E07000114,Thanet District Council,29/11/2017,443794,1601.39,,Midland Software Limited,MID013,East Kent Shared Services,Revenue,Communications & Computing,ICT
http://statistics.data.gov.uk/search?search=E07000114,Thanet District Council,29/11/2017,443795,8007.19,,Midland Software Limited,MID013,East Kent Shared Services,Revenue,Communications & Computing,ICT
http://statistics.data.gov.uk/search?search=E07000114,Thanet District Council,29/11/2017,444140,2028.00,,Mullaney Roofing Limited,MUL006,Corporate Resources and S151,Balance Sheet,Capital Exp-Non Council Assets,Grants
http://statistics.data.gov.uk/search?search=E07000114,Thanet District Council,29/11/2017,443760,15000.00,,Neopost Limited Neofunds,NEO004,Corporate Governance,Revenue,Communications & Computing,Mail Services
http://statistics.data.gov.uk/search?search=E07000114,Thanet District Council,29/11/2017,444141,9611.00,,Northwood Builders,NOR002,Corporate Resources and S151,Balance Sheet,Capital Exp-Non Council Assets,Grants
http://statistics.data.gov.uk/search?search=E07000114,Thanet District Council,29/11/2017,442935,312.00,,Pass Driving School Ltd,PAS003,Corporate Resources and S151,Revenue,Training,Human Resources
http://statistics.data.gov.uk/search?search=E07000114,Thanet District Council,29/11/2017,443755,46664.00,,Phoenix Software Ltd,PHO002,Corporate Resources and S151,Revenue,Communications & Computing,ICT
http://statistics.data.gov.uk/search?search=E07000114,Thanet District Council,29/11/2017,444124,500.00,,Pow Thanet,POW021,Community Services,Revenue,Grants & Subscriptions,Grants
http://statistics.data.gov.uk/search?search=E07000114,Thanet District Council,29/11/2017,443787,465.00,,Probrand Ltd,PRO012,East Kent Shared Services,Revenue,Communications & Computing,ICT
http://statistics.data.gov.uk/search?search=E07000114,Thanet District Council,29/11/2017,443831,525.00,,R Cannon,CAN007,Operational Services,Revenue,Services,Maritime Services
http://statistics.data.gov.uk/search?search=E07000114,Thanet District Council,29/11/2017,443566,500.00,,R J Broadley Tree Surgery,RJB002,Operational Services,Revenue,Grounds Mtce Costs,Horticultural
http://statistics.data.gov.uk/search?search=E07000114,Thanet District Council,29/11/2017,443621,721.50,,R S S (Wessex) Limited,RSS002,Operational Services,Revenue,Agency Staff,Human Resources
http://statistics.data.gov.uk/search?search=E07000114,Thanet District Council,29/11/2017,444205,300.00,,Ramsgate Skate Park Project,RSK001,Community Services,Revenue,Grants & Subscriptions,Grants
http://statistics.data.gov.uk/search?search=E07000114,Thanet District Council,29/11/2017,443672,394.80,,Ricardo-Aea Limited,RIC028,Community Services,Revenue,Expenses,Consultancy
http://statistics.data.gov.uk/search?search=E07000114,Thanet District Council,29/11/2017,443214,600.00,,Rogers & Hambidge Ltd,ROG007,Community Services,Revenue,Services,Facilities And Management Serv
http://statistics.data.gov.uk/search?search=E07000114,Thanet District Council,29/11/2017,443964,1917.00,,Sellick Partnership Ltd,SEL011,Corporate Governance,Revenue,Services,Human Resources
http://statistics.data.gov.uk/search?search=E07000114,Thanet District Council,29/11/2017,444137,6390.00,,South East Building Company Limited,SEB001,Corporate Resources and S151,Balance Sheet,Capital Exp-Non Council Assets,Grants
http://statistics.data.gov.uk/search?search=E07000114,Thanet District Council,29/11/2017,444147,2688.57,,South East Building Company Limited,SEB001,Corporate Resources and S151,Balance Sheet,Capital Exp-Non Council Assets,Grants
http://statistics.data.gov.uk/search?search=E07000114,Thanet District Council,29/11/2017,443270,689.00,,Stagecoach Services Limited,STA023,Corporate Resources and S151,Balance Sheet,Staff Bus Permits Holding A/C,Public Transport
http://statistics.data.gov.uk/search?search=E07000114,Thanet District Council,29/11/2017,443969,689.00,,Stagecoach Services Limited,STA023,Corporate Resources and S151,Balance Sheet,Staff Bus Permits Holding A/C,Public Transport
http://statistics.data.gov.uk/search?search=E07000114,Thanet District Council,29/11/2017,443970,689.00,,Stagecoach Services Limited,STA023,Corporate Resources and S151,Balance Sheet,Staff Bus Permits Holding A/C,Public Transport
http://statistics.data.gov.uk/search?search=E07000114,Thanet District Council,29/11/2017,444126,300.00,,Sycon Uk Ltd,SYC002,Community Services,Revenue,Grants & Subscriptions,Rent Deposits
http://statistics.data.gov.uk/search?search=E07000114,Thanet District Council,29/11/2017,443679,780.00,,The Generation Group Enterprises Ltd,GEN012,Community Services,Revenue,Rents,Facilities And Management Serv
http://statistics.data.gov.uk/search?search=E07000114,Thanet District Council,29/11/2017,443230,1015.00,,The Pipeline,PIP002,Community Services,Revenue,"Repairs,  Alter & Mtce - Build",Various Categories
http://statistics.data.gov.uk/search?search=E07000114,Thanet District Council,29/11/2017,443231,1015.00,,The Pipeline,PIP002,Community Services,Revenue,"Repairs,  Alter & Mtce - Build",Various Categories
http://statistics.data.gov.uk/search?search=E07000114,Thanet District Council,29/11/2017,443763,18627.92,,Trinity House,TRI002,Operational Services,Revenue,"Equip, Furniture And Materials",Maritime Services
http://statistics.data.gov.uk/search?search=E07000114,Thanet District Council,29/11/2017,444144,12138.41,,Trueden Disability Adaptations Ltd,TRU012,Corporate Resources and S151,Balance Sheet,Capital Exp-Non Council Assets,Grants
http://statistics.data.gov.uk/search?search=E07000114,Thanet District Council,29/11/2017,444145,16734.00,,Trueden Disability Adaptations Ltd,TRU012,Corporate Resources and S151,Balance Sheet,Capital Exp-Non Council Assets,Grants
http://statistics.data.gov.uk/search?search=E07000114,Thanet District Council,29/11/2017,444206,375.00,,Ursuline College,URS001,Community Services,Revenue,Grants & Subscriptions,Arts And Leisure Services
http://statistics.data.gov.uk/search?search=E07000114,Thanet District Council,29/11/2017,443272,230.00,,W Brazil & Bros,BRA001,Corporate Resources and S151,Balance Sheet,Repairs And Mtce Holding A/C,Environmental Services
http://statistics.data.gov.uk/search?search=E07000114,Thanet District Council,29/11/2017,443273,280.00,,W Brazil & Bros,BRA001,Corporate Resources and S151,Balance Sheet,Repairs And Mtce Holding A/C,Environmental Services
http://statistics.data.gov.uk/search?search=E07000114,Thanet District Council,29/11/2017,443277,850.00,,W Brazil & Bros,BRA001,Corporate Resources and S151,Balance Sheet,Repairs And Mtce Holding A/C,Environmental Services
http://statistics.data.gov.uk/search?search=E07000114,Thanet District Council,29/11/2017,444123,1000.00,,Westgate On Sea Lighting&Improvement,WES048,Community Services,Revenue,Grants & Subscriptions,Grants
http://statistics.data.gov.uk/search?search=E07000114,Thanet District Council,29/11/2017,443567,5000.00,,Xynomix Limited,XYN001,East Kent Shared Services,Revenue,Communications & Computing,ICT
http://statistics.data.gov.uk/search?search=E07000114,Thanet District Council,30/11/2017,444394,638483.00,,Maidstone Borough Council,MAI002,Corporate Resources and S151,Revenue,Revenue Financing,Various Cats-Public Sector
http://statistics.data.gov.uk/search?search=E07000114,Thanet District Council,30/11/2017,444394,250173.00,,Maidstone Borough Council,MAI002,Corporate Resources and S151,Balance Sheet,Collection Fund,Various Cats-Public Sector
http://statistics.data.gov.uk/search?search=E07000114,Thanet District Council,30/11/2017,444392,196428.57,,Public Works Loan Board,PWL001,Corporate Resources and S151,Balance Sheet,Borrowing Repayable>1 Yr,Investments And Loans
http://statistics.data.gov.uk/search?search=E07000114,Thanet District Council,30/11/2017,444392,18156.25,,Public Works Loan Board,PWL001,Corporate Resources and S151,Balance Sheet,Debit Interest And Expenses,Investments And Loans
